Workbook

Sheet Sine -- Radians
B1: Approximating Sinusoidal Functions
B2: with Lagrange Interpolation Polynomials
B4: This DIGMath module lets you investigate how
B5: Lagrange quadratic Interpolation Polynomials
B6: are used to approximate
B7: the sine function y = sin x
B8: with x in radians on [0, p/4].
A10: The three interpolating points are x = x0, p/8, and x2.
B12: What is the first point x0 (0 to 0.35)? | E12: =F13/100 -> 0.06
F13: 6 | G13: 127
B15: What is the third point x2 (0.40 to 0.78)? | E15: =F16/100 -> 0.59 | L15: Now trace along the curve: x = | M15: =xMin+N16*dx -> 0.3832743037 | N15: and y = | O15: =LOOKUP(M15+0.001,Calculations!D2:D502,Calculations!E2:E502) -> 0.37
F16: 59 | G16: 127 | N16: 244
L18: The corresponding error = | M18: =Calculations!B13 -> 0.0001
A21: Click each item below for suggestions and investigations
D22: Item 1
D23: Item 2
D24: Item 3
D25: Item 4
D26: Item 5
A30: To access/download all the DIGMath Apps for College Algebra/Precalculus
A31: Click this link: | C31: DIGMath Modules for College Algebra and Precalculus
A33: Created by: Sheldon P. Gordon & Florence S. Gordon
A34: Farmingdale State College NYIT | L34: The maximum error (in absolute value) = | M34: =Calculations!B9 -> 0.00826
A35: Development of this module was supported by the
A36: NSF's Division of Undergraduate Education
A37: under grants DUE-0310123 and DUE-0442160.

Sheet Sine -- Degrees
B1: Approximating Sinusoidal Functions
B2: with Lagrange Interpolation Polynomials
B4: This DIGMath module lets you investigate how
B5: Lagrange quadratic Interpolation Polynomials
B6: are used to approximate
B7: the sine function y = sin x
B8: with x in degrees on [0°, 45°].
A10: The three interpolating points are x = x0, 22.5°, and x2.
B12: What is the first point x0 (0 to 20°)? | E12: =F13/10 -> 11 | F12: °
F13: 110 | G13: 127
B15: What is the third point x2 (25° to 45°)? | E15: =F16/10 -> 35.2 | F15: ° | M15: Now trace along the curve: x = | N15: =O16/10 -> 25.3 | O15: ° and y = | P15: =LOOKUP(N15+0.001,Calculations!M2:M452,Calculations!N2:N452) -> 0.43
F16: 352 | G16: 127 | O16: 253
M18: The corresponding error = | N18: =Calculations!K13 -> -0.0003
A23: Click each item below for suggestions and investigations
D24: Item 1
D25: Item 2
D26: Item 3
D27: Item 4
D28: Item 5
A31: To access/download all the DIGMath Apps for College Algebra/Precalculus
A32: Click this link: | C32: DIGMath Modules for College Algebra and Precalculus
A34: Created by: Sheldon P. Gordon & Florence S. Gordon | M34: The maximum error (in absolute value) = | N34: =Calculations!K9 -> 0.00734
A35: Farmingdale State College NYIT
A36: Development of this module was supported by the
A37: NSF's Division of Undergraduate Education
A38: under grants DUE-0310123 and DUE-0442160.

Sheet 4 Points - Radians
B1: Approximating Sinusoidal Functions
B2: with Lagrange Interpolation Polynomials
B4: This DIGMath module lets you investigate how
B5: Lagrange cubic Interpolation Polynomials
B6: are used to approximate
B7: the sine function y = sin x
B8: with x in radians on [0, p/4].
A10: The four interpolating points are x = x0, x1, x2, and x3.
B12: What is the first point x0 (0 to 0.20)? | E12: =G13/980 -> 0.20
F13: 29 | G13: 196
B15: What is the second point x1 (0.20 to 0.40)? | E15: =G16/980+0.196 -> 0.20 | L15: Now trace along the curve: x = | M15: =O16*dxxx0 -> 0.785 | N15: and y = | O15: =LOOKUP(M15+0.00001,Calculations!V2:V502,Calculations!W2:W502) -> 0.707
F16: 50 | G16: 0 | O16: 500
B18: What is the third point x2 (0.39 to 0.59)? | E18: =G19/980+0.196*2 -> 0.39 | L18: The corresponding error = | M18: =Calculations!T13 -> -0.000004
F19: 50 | G19: 0
B21: What is the fourth point x3 (0.59 to 0.79)? | E21: =G22/980+0.196*3 -> 0.59
F22: 50 | G22: 0
A26: Click each item below for suggestions and investigations
D27: Item 1
D28: Item 2
D29: Item 3
D30: Item 4
D31: Item 5
L34: The maximum error (in absolute value) = | M34: =Calculations!T9 -> 0.000289
A35: To access/download all the DIGMath Apps for College Algebra/Precalculus
A36: Click this link: | C36: DIGMath Modules for College Algebra and Precalculus
A38: Created by: Sheldon P. Gordon & Florence S. Gordon
A39: Farmingdale State College NYIT
A40: Development of this module was supported by the
A41: NSF's Division of Undergraduate Education
A42: under grants DUE-0310123 and DUE-0442160.

Sheet 4 Points - Degrees
B1: Approximating Sinusoidal Functions
B2: with Lagrange Interpolation Polynomials
B4: This DIGMath module lets you investigate how
B5: Lagrange cubic Interpolation Polynomials
B6: are used to approximate
B7: the sine function y = sin x
B8: with x in degrees on [0°, 45°].
A10: The four interpolating points are x = x0, x1, x2, and x3.
B12: What is the first point x0 (0 to 11°)? | E12: =F13/10 -> 7.3 | F12: °
E13: 29 | F13: 73
B15: What is the second point x1 (11.5° to 22.5°)? | E15: =F16/10+11.5 -> 18.4 | F15: ° | L15: Now trace along the curve: x = | M15: =N16*dxxxx0 -> 25.30 | N15: ° and y = | O15: =LOOKUP(M15+0.00001,Calculations!AE2:AE452,Calculations!AF2:AF502) -> 0.427
E16: 50 | F16: 69 | N16: 253
B18: What is the third point x2 (23° to 34°)? | E18: =F19/10+11.5*2 -> 34 | F18: ° | L18: The corresponding error = | M18: =Calculations!AC13 -> -0.000052
E19: 50 | F19: 110
B21: What is the fourth point x3 (34.5° to 45°)? | E21: =F22/10+11.5*3 -> 41.5 | F21: °
E22: 50 | F22: 70
A26: Click each item below for suggestions and investigations
D27: Item 1
D28: Item 2
D29: Item 3
D30: Item 4
D31: Item 5
A34: To access/download all the DIGMath Apps for College Algebra/Precalculus | L34: The maximum error (in absolute value) = | M34: =Calculations!AC9 -> 0.000174
A35: Click this link: | C35: DIGMath Modules for College Algebra and Precalculus
A37: Created by: Sheldon P. Gordon & Florence S. Gordon
A38: Farmingdale State College NYIT
A39: Development of this module was supported by the
A40: NSF's Division of Undergraduate Education
A41: under grants DUE-0310123 and DUE-0442160.

Sheet Calculations
B1: dx = | C1: =PI()/4/500 -> 0.001570796327 | D1: x | E1: Sine | F1: L2(x) | G1: Error | H1: ABS(Error) | K1: dxx = | L1: =45/450 -> 0.1 | M1: x | N1: Sine | O1: L2(x) | P1: Error | Q1: ABS(Error) | T1: dxxx0 = | U1: =PI()/4/500 -> 0.001570796327 | V1: x | W1: Sine | X1: L3(x) | Y1: Error | Z1: ABS(Error) | AC1: dxxxx0 = | AD1: 0.1 | AE1: x | AF1: Sine | AG1: L3(x) | AH1: Error | AI1: ABS(Error)
D2: =0 -> 0 | E2: =SIN(x) -> 0 | F2: =y0*(x-x00)*(x-x000)/(x0-x00)/(x0-x000)+y00*(x-x0)*(x-x000)/(x00-x0)/(x00-x000)+y000*(x-x0)*(x-x00)/(x000-x0)/(x000-x00) -> -0.002225598769 | G2: =F2-E2 -> -0.002225598769 | H2: =ABS(G2) -> 0.002225598769 | M2: =0 -> 0 | N2: =SIN(xx*PI()/180) -> 0 | O2: =yy0*(xx-xx00)*(xx-xx000)/(xx0-xx00)/(xx0-xx000)+yy00*(xx-xx0)*(xx-xx000)/(xx00-xx0)/(xx00-xx000)+yy000*(xx-xx0)*(xx-xx00)/(xx000-xx0)/(xx000-xx00) -> -0.007336988717 | P2: =O2-N2 -> -0.007336988717 | Q2: =ABS(P2) -> 0.007336988717 | T2: dxxx = | U2: =T5-T4 -> -0.004 | V2: 0 | W2: =SIN(xxx) -> 0 | X2: =yyy0*(xxx-xxx00)*(xxx-xxx000)*(xxx-xxx0000)/(xxx0-xxx00)/(xxx0-xxx000)/(xxx0-xxx0000)+yyy00*(xxx-xxx0)*(xxx-xxx000)*(xxx-xxx0000)/(xxx00-xxx0)/(xxx00-xxx000)/(xxx00-xxx0000)+yyy000*(xxx-xxx0)*(xxx-xxx00)*(xxx-xxx0000)/(xxx000-xxx0)/(xxx000-xxx00)/(xxx000-xxx0000)+yyy0000*(xxx-xxx0)*(xxx-xxx00)*(xxx-xxx000)/(xxx0000-xxx0)/(xxx0000-xxx00)/(xxx0000-xxx000) -> -0.000101958578 | Y2: -0.0002886710084 | Z2: 0.0002886710084 | AC2: dxxxx = | AD2: 13.5 | AE2: 0 | AF2: =SIN(xxxx*PI()/180) -> 0 | AG2: =yyyy0*(xxxx-xxxx00)*(xxxx-xxxx000)*(xxxx-xxxx0000)/(xxxx0-xxxx00)/(xxxx0-xxxx000)/(xxxx0-xxxx0000)+yyyy00*(xxxx-xxxx0)*(xxxx-xxxx000)*(xxxx-xxxx0000)/(xxxx00-xxxx0)/(xxxx00-xxxx000)/(xxxx00-xxxx0000)+yyyy000*(xxxx-xxxx0)*(xxxx-xxxx00)*(xxxx-xxxx0000)/(xxxx000-xxxx0)/(xxxx000-xxxx00)/(xxxx000-xxxx0000)+yyyy0000*(xxxx-xxxx0)*(xxxx-xxxx00)*(xxxx-xxxx000)/(xxxx0000-xxxx0)/(xxxx0000-xxxx00)/(xxxx0000-xxxx000) -> -0.0002519246981 | AH2: -0.0001397228157 | AI2: 0.0001397228157
B3: x | C3: y | D3: =D2+dx -> 0.001570796327 | E3: 0.001570795681 | F3: -0.0005819390052 | G3: =F3-E3 -> -0.002152734686 | H3: =ABS(G3) -> 0.002152734686 | K3: x | L3: y | M3: =M2+dxx -> 0.1 | N3: 0.001745328366 | O3: -0.005471301321 | P3: =O3-N3 -> -0.007216629687 | Q3: =ABS(P3) -> 0.007216629687 | T3: x | U3: y | V3: =V2+dxxx0 -> 0.001570796327 | W3: 0.001570795681 | X3: 0.001471005444 | Y3: -0.0002779889729 | Z3: 0.0002779889729 | AC3: xxxx | AD3: yyyy | AE3: 0.1 | AF3: 0.001745328366 | AG3: 0.001499288184 | AH3: -0.0001311039856 | AI3: 0.0001311039856
A4: 1 | B4: =x0 -> 0.06 | C4: =SIN(x0) -> 0.05996400648 | D4: 0.003141592654 | E4: 0.003141587486 | F4: 0.001060885227 | G4: -0.002080702259 | H4: 0.002080702259 | J4: 1 | K4: =xx0 -> 11 | L4: =SIN(K4*PI()/180) -> 0.1908089954 | M4: 0.2 | N4: 0.003490651415 | O4: -0.003606794848 | P4: -0.007097446263 | Q4: 0.007097446263 | S4: 1 | T4: =xxx0 -> 0.2 | U4: =SIN(T4) -> 0.1986693308 | V4: 0.003141592654 | W4: 0.003141587486 | X4: 0.003043934388 | Y4: -0.0002674839851 | Z4: 0.0002674839851 | AB4: 1 | AC4: =xxxx0 -> 7.3 | AD4: =SIN(AC4*PI()/180) -> 0.1270646086 | AE4: 0.2 | AF4: 0.003490651415 | AG4: 0.003250415575 | AH4: -0.0001226686925 | AI4: 0.0001226686925
A5: 2 | B5: =PI()/8 -> 0.3926990817 | C5: =SIN(B5) -> 0.3826834324 | D5: 0.00471238898 | E5: 0.004712371539 | F5: 0.002702873929 | G5: -0.002009497611 | H5: 0.002009497611 | J5: 2 | K5: =22.5 -> 22.5 | L5: =SIN(K5*PI()/180) -> 0.3826834324 | M5: 0.3 | N5: 0.005235963831 | O5: -0.001743469297 | P5: -0.006979433129 | Q5: 0.006979433129 | S5: 2 | T5: =xxx00 -> 0.196 | U5: =SIN(T5) -> 0.1947474856 | V5: 0.00471238898 | W5: 0.004712371539 | X5: 0.004616824614 | Y5: -0.0002571544818 | Z5: 0.0002571544818 | AB5: 2 | AC5: =xxxx00 -> 18.4 | AD5: =SIN(AC5*PI()/180) -> 0.3156490369 | AE5: 0.3 | AF5: 0.005235963831 | AG5: 0.005001452695 | AH5: -0.0001144149512 | AI5: 0.0001144149512
A6: 3 | B6: =x000 -> 0.59 | C6: =SIN(x000) -> 0.5563610229 | D6: 0.006283185307 | E6: 0.006283143966 | F6: 0.004344027099 | G6: -0.001939116867 | H6: 0.001939116867 | J6: 3 | K6: =xx000 -> 35.2 | L6: =SIN(K6*PI()/180) -> 0.5764323162 | M6: 0.4 | N6: 0.006981260298 | O6: 0.0001186753312 | P6: -0.006862584967 | Q6: 0.006862584967 | S6: 3 | T6: =xxx000 -> 0.392 | U6: =SIN(T6) -> 0.3820374716 | V6: 0.006283185307 | W6: 0.006283143966 | X6: 0.006189672484 | Y6: -0.0002469989058 | Z6: 0.0002469989058 | AB6: 3 | AC6: =xxxx000 -> 34 | AD6: =SIN(AC6*PI()/180) -> 0.5591929035 | AE6: 0.4 | AF6: 0.006981260298 | AG6: 0.006752394763 | AH6: -0.0001063407857 | AI6: 0.0001063407857
D7: 0.007853981634 | E7: 0.007853900889 | F7: 0.005984344737 | G7: -0.001869556151 | H7: 0.001869556151 | M7: 0.5 | N7: 0.008726535498 | O7: 0.001979639037 | P7: -0.006746896461 | Q7: 0.006746896461 | S7: 4 | T7: =xxx0000 -> 0.588 | U7: =SIN(T7) -> 0.5546980299 | V7: 0.007853981634 | W7: 0.007853900889 | X7: 0.007762474357 | Y7: -0.0002370157061 | Z7: 0.0002370157061 | AB7: 4 | AC7: =xxxx0000 -> 41.5 | AD7: =SIN(AC7*PI()/180) -> 0.6626200482 | AE7: 0.5 | AF7: 0.008726535498 | AG7: 0.008503236998 | AH7: -9.844422928e-05 | AI7: 9.844422928e-05
D8: 0.009424777961 | E8: 0.009424638433 | F8: 0.007623826845 | G8: -0.001800811588 | H8: 0.001800811588 | M8: 0.6 | N8: 0.01047178412 | O8: 0.003839421821 | P8: -0.006632362295 | Q8: 0.006632362295 | V8: 0.009424777961 | W8: 0.009424638433 | X8: 0.009335226595 | Y8: -0.0002272033377 | Z8: 0.0002272033377 | AE8: 0.6 | AF8: 0.01047178412 | AG8: 0.01025397462 | AH8: -9.072332447e-05 | AI8: 9.072332447e-05
A9: MaxError = | B9: =MAX(H2:H502) -> 0.008264979902 | D9: 0.01099557429 | E9: 0.01099535272 | F9: 0.009262473421 | G9: -0.001732879302 | H9: 0.001732879302 | J9: MaxError = | K9: =MAX(Q2:Q452) -> 0.007336988717 | M9: 0.7 | N9: 0.01221700084 | O9: 0.005698023683 | P9: -0.006518977153 | Q9: 0.006518977153 | S9: MaxError = | T9: =MAX(Z2:Z502) -> 0.0002886710084 | V9: 0.01099557429 | W9: 0.01099535272 | X9: 0.01090792556 | Y9: -0.0002175602617 | Z9: 0.0002175602617 | AB9: MaxError = | AC9: =MAX(AI2:AL452) -> 0.0001739253025 | AE9: 0.7 | AF9: 0.01221700084 | AG9: 0.01200460285 | AH9: -8.317612314e-05 | AI9: 8.317612314e-05
D10: 0.01256637061 | E10: 0.01256603988 | F10: 0.01090028447 | G10: -0.001665755417 | H10: 0.001665755417 | M10: 0.8 | N10: 0.01396218034 | O10: 0.007555444622 | P10: -0.006406735717 | Q10: 0.006406735717 | V10: 0.01256637061 | W10: 0.01256603988 | X10: 0.01248056761 | Y10: -0.0002080849453 | Z10: 0.0002080849453 | AE10: 0.8 | AF10: 0.01396218034 | AG10: 0.0137551169 | AH10: -7.580068642e-05 | AI10: 7.580068642e-05
D11: 0.01413716694 | E11: 0.01413669604 | F11: 0.01253725998 | G11: -0.001599436058 | H11: 0.001599436058 | M11: 0.9 | N11: 0.01570731731 | O11: 0.009411684639 | P11: -0.006295632673 | Q11: 0.006295632673 | V11: 0.01413716694 | W11: 0.01413669604 | X11: 0.01405314911 | Y11: -0.0001987758617 | Z11: 0.0001987758617 | AE11: 0.9 | AF11: 0.01570731731 | AG11: 0.015505512 | AH11: -6.859508472e-05 | AI11: 6.859508472e-05
A12: Point | D12: 0.01570796327 | E12: 0.01570731731 | F12: 0.01417339996 | G12: -0.001533917349 | H12: 0.001533917349 | J12: Point | M12: 1 | N12: 0.01745240644 | O12: 0.01126674373 | P12: -0.006185662704 | Q12: 0.006185662704 | S12: Point | V12: 0.01570796327 | W12: 0.01570731731 | X12: 0.01562566641 | Y12: -0.0001896314905 | Z12: 0.0001896314905 | AB12: Point | AE12: 1 | AF12: 0.01745240644 | AG12: 0.01725578337 | AH12: -6.155739772e-05 | AI12: 6.155739772e-05
A13: ='Sine -- Radians'!M15 -> 0.3832743037 | B13: =LOOKUP(A13,D2:D502,G2:G502) -> 0.0001146812686 | D13: 0.01727875959 | E13: 0.01727789983 | F13: 0.01580870441 | G13: -0.001469195415 | H13: 0.001469195415 | J13: ='Sine -- Degrees'!N15 -> 25.3 | K13: =LOOKUP(J13,M2:M452,P2:P452) -> -0.0003109064634 | M13: 1.1 | N13: 0.0191974424 | O13: 0.01312062191 | P13: -0.006076820494 | Q13: 0.006076820494 | S13: ='4 Points - Radians'!M15 -> 0.7853981634 | T13: =LOOKUP(S13+0.000001,V2:V502,Y2:Y502) -> -4.378840913e-06 | V13: 0.01727875959 | W13: 0.01727789983 | X13: 0.01719811589 | Y13: -0.0001806503169 | Z13: 0.0001806503169 | AB13: ='4 Points - Degrees'!M15 -> 25.3 | AC13: =LOOKUP(AB13+0.000001,AE2:AE452,AH2:AH452) -> -5.152963647e-05 | AE13: 1.1 | AF13: 0.0191974424 | AG13: 0.01900592621 | AH13: -5.468571438e-05 | AI13: 5.468571438e-05
D14: 0.01884955592 | E14: 0.01884843972 | F14: 0.01744317333 | G14: -0.001405266381 | H14: 0.001405266381 | M14: 1.2 | N14: 0.02094241988 | O14: 0.01497331916 | P14: -0.005969100728 | Q14: 0.005969100728 | V14: 0.01884955592 | W14: 0.01884843972 | X14: 0.01877049389 | Y14: -0.0001718308327 | Z14: 0.0001718308327 | AE14: 1.2 | AF14: 0.02094241988 | AG14: 0.02075593576 | AH14: -4.797813294e-05 | AI14: 4.797813294e-05
D15: 0.02042035225 | E15: 0.02041893309 | F15: 0.01907680672 | G15: -0.001342126372 | H15: 0.001342126372 | M15: 1.3 | N15: 0.02268733357 | O15: 0.01682483548 | P15: -0.00586249809 | Q15: 0.00586249809 | V15: 0.02042035225 | W15: 0.02041893309 | X15: 0.02034279678 | Y15: -0.0001631715353 | Z15: 0.0001631715353 | AE15: 1.3 | AF15: 0.02268733357 | AG15: 0.02250580723 | AH15: -4.143276091e-05 | AI15: 4.143276091e-05
D16: 0.02199114858 | E16: 0.02198937609 | F16: 0.02070960458 | G16: -0.001279771512 | H16: 0.001279771512 | M16: 1.4 | N16: 0.02443217815 | O16: 0.01867517089 | P16: -0.005757007265 | Q16: 0.005757007265 | V16: 0.02199114858 | W16: 0.02198937609 | X16: 0.02191502093 | Y16: -0.0001546709286 | Z16: 0.0001546709286 | AE16: 1.4 | AF16: 0.02443217815 | AG16: 0.02425553585 | AH16: -3.50477151e-05 | AI16: 3.50477151e-05
D17: 0.0235619449 | E17: 0.02355976483 | F17: 0.02234156691 | G17: -0.001218197927 | H17: 0.001218197927 | M17: 1.5 | N17: 0.02617694831 | O17: 0.02052432537 | P17: -0.005652622937 | Q17: 0.005652622937 | V17: 0.0235619449 | W17: 0.02355976483 | X17: 0.02348716268 | Y17: -0.0001463275224 | Z17: 0.0001463275224 | AE17: 1.5 | AF17: 0.02617694831 | AG17: 0.02600511682 | AH17: -2.882112158e-05 | AI17: 2.882112158e-05
D18: 0.02513274123 | E18: 0.02513009544 | F18: 0.0239726937 | G18: -0.001157401741 | H18: 0.001157401741 | M18: 1.6 | N18: 0.02792163872 | O18: 0.02237229893 | P18: -0.005549339792 | Q18: 0.005549339792 | V18: 0.02513274123 | W18: 0.02513009544 | X18: 0.02505921841 | Y18: -0.0001381398325 | Z18: 0.0001381398325 | AE18: 1.6 | AF18: 0.02792163872 | AG18: 0.02775454538 | AH18: -2.275111568e-05 | AI18: 2.275111568e-05
D19: 0.02670353756 | E19: 0.02670036405 | F19: 0.02560298497 | G19: -0.001097379081 | H19: 0.001097379081 | M19: 1.7 | N19: 0.02966624409 | O19: 0.02421909157 | P19: -0.005447152516 | Q19: 0.005447152516 | V19: 0.02670353756 | W19: 0.02670036405 | X19: 0.02663118447 | Y19: -0.0001301063809 | Z19: 0.0001301063809 | AE19: 1.7 | AF19: 0.02966624409 | AG19: 0.02950381673 | AH19: -1.683584204e-05 | AI19: 1.683584204e-05
D20: 0.02827433388 | E20: 0.02827056677 | F20: 0.0272324407 | G20: -0.001038126071 | H20: 0.001038126071 | M20: 1.8 | N20: 0.03141075908 | O20: 0.02606470329 | P20: -0.005346055793 | Q20: 0.005346055793 | V20: 0.02827433388 | W20: 0.02827056677 | X20: 0.02820305723 | Y20: -0.0001222256958 | Z20: 0.0001222256958 | AE20: 1.8 | AF20: 0.03141075908 | AG20: 0.0312529261 | AH20: -1.107345455e-05 | AI20: 1.107345455e-05
D21: 0.02984513021 | E21: 0.02984069974 | F21: 0.0288610609 | G21: -0.0009796388384 | H21: 0.0009796388384 | M21: 1.9 | N21: 0.03315517839 | O21: 0.02790913408 | P21: -0.00524604431 | Q21: 0.00524604431 | V21: 0.02984513021 | W21: 0.02984069974 | X21: 0.02977483304 | Y21: -0.0001144963112 | Z21: 0.0001144963112 | AE21: 1.9 | AF21: 0.03315517839 | AG21: 0.03300186871 | AH21: -5.462116387e-06 | AI21: 5.462116387e-06
D22: 0.03141592654 | E22: 0.03141075908 | F22: 0.03048884557 | G22: -0.0009219135076 | H22: 0.0009219135076 | M22: 2 | N22: 0.0348994967 | O22: 0.02975238395 | P22: -0.005147112753 | Q22: 0.005147112753 | V22: 0.03141592654 | W22: 0.03141075908 | X22: 0.03134650827 | Y22: -0.0001069167674 | Z22: 0.0001069167674 | AE22: 2 | AF22: 0.0348994967 | AG22: 0.03475063978 | AH22: 0 | AI22: 0
D23: 0.03298672286 | E23: 0.03298074091 | F23: 0.03211579471 | G23: -0.0008649462052 | H23: 0.0008649462052 | M23: 2.1 | N23: 0.03664370871 | O23: 0.0315944529 | P23: -0.005049255808 | Q23: 0.005049255808 | V23: 0.03298672286 | W23: 0.03298074091 | X23: 0.03291807927 | Y23: -9.948561069e-05 | Z23: 9.948561069e-05 | AE23: 2.1 | AF23: 0.03664370871 | AG23: 0.03649923453 | AH23: 5.314712889e-06 | AI23: 5.314712889e-06
D24: 0.03455751919 | E24: 0.03455064137 | F24: 0.03374190832 | G24: -0.0008087330573 | H24: 0.0008087330573 | M24: 2.2 | N24: 0.03838780909 | O24: 0.03343534092 | P24: -0.004952468163 | Q24: 0.004952468163 | V24: 0.03455751919 | W24: 0.03455064137 | X24: 0.03448954241 | Y24: -9.220139357e-05 | Z24: 9.220139357e-05 | AE24: 2.2 | AF24: 0.03838780909 | AG24: 0.03824764817 | AH24: 1.048383128e-05 | AI24: 1.048383128e-05
D25: 0.03612831552 | E25: 0.03612045658 | F25: 0.03536718639 | G25: -0.0007532701903 | H25: 0.0007532701903 | M25: 2.3 | N25: 0.04013179253 | O25: 0.03527504803 | P25: -0.004856744504 | Q25: 0.004856744504 | V25: 0.03612831552 | W25: 0.03612045658 | X25: 0.03606089405 | Y25: -8.506267449e-05 | Z25: 8.506267449e-05 | AE25: 2.3 | AF25: 0.04013179253 | AG25: 0.03999587593 | AH25: 1.550915492e-05 | AI25: 1.550915492e-05
D26: 0.03769911184 | E26: 0.03769018267 | F26: 0.03699162894 | G26: -0.000698553731 | H26: 0.000698553731 | M26: 2.4 | N26: 0.04187565373 | O26: 0.03711357421 | P26: -0.004762079519 | Q26: 0.004762079519 | V26: 0.03769911184 | W26: 0.03769018267 | X26: 0.03763213054 | Y26: -7.806801802e-05 | Z26: 7.806801802e-05 | AE26: 2.4 | AF26: 0.04187565373 | AG26: 0.04174391302 | AH26: 2.039247424e-05 | AI26: 2.039247424e-05
D27: 0.03926990817 | E27: 0.03925981576 | F27: 0.03861523595 | G27: -0.0006445798061 | H27: 0.0006445798061 | M27: 2.5 | N27: 0.04361938737 | O27: 0.03895091947 | P27: -0.004668467895 | Q27: 0.004668467895 | V27: 0.03926990817 | W27: 0.03925981576 | X27: 0.03920324826 | Y27: -7.121599485e-05 | Z27: 7.121599485e-05 | AE27: 2.5 | AF27: 0.04361938737 | AG27: 0.04349175467 | AH27: 2.513557045e-05 | AI27: 2.513557045e-05
D28: 0.0408407045 | E28: 0.04082935198 | F28: 0.04023800744 | G28: -0.0005913445428 | H28: 0.0005913445428 | M28: 2.6 | N28: 0.04536298813 | O28: 0.04078708381 | P28: -0.004575904322 | Q28: 0.004575904322 | V28: 0.0408407045 | W28: 0.04082935198 | X28: 0.04077424356 | Y28: -6.450518171e-05 | Z28: 6.450518171e-05 | AE28: 2.6 | AF28: 0.04536298813 | AG28: 0.04523939609 | AH28: 2.974021546e-05 | AI28: 2.974021546e-05
D29: 0.04241150082 | E29: 0.04239878746 | F29: 0.04185994339 | G29: -0.0005388440683 | H29: 0.0005388440683 | M29: 2.7 | N29: 0.04710645071 | O29: 0.04262206722 | P29: -0.004484383488 | Q29: 0.004484383488 | V29: 0.04241150082 | W29: 0.04239878746 | X29: 0.04234511279 | Y29: -5.793416145e-05 | Z29: 5.793416145e-05 | AE29: 2.7 | AF29: 0.04710645071 | AG29: 0.0469868325 | AH29: 3.420817191e-05 | AI29: 3.420817191e-05
D30: 0.04398229715 | E30: 0.04396811832 | F30: 0.04348104381 | G30: -0.0004870745103 | H30: 0.0004870745103 | M30: 2.8 | N30: 0.0488497698 | O30: 0.04445586971 | P30: -0.004393900081 | Q30: 0.004393900081 | V30: 0.04398229715 | W30: 0.04396811832 | X30: 0.04391585233 | Y30: -5.150152296e-05 | Z30: 5.150152296e-05 | AE30: 2.8 | AF30: 0.0488497698 | AG30: 0.04873405913 | AH30: 3.854119318e-05 | AI30: 3.854119318e-05
D31: 0.04555309348 | E31: 0.04553734069 | F31: 0.0451013087 | G31: -0.0004360319966 | H31: 0.0004360319966 | M31: 2.9 | N31: 0.05059294008 | O31: 0.04628849128 | P31: -0.004304448792 | Q31: 0.004304448792 | V31: 0.04555309348 | W31: 0.04553734069 | X31: 0.04548645853 | Y31: -4.520586127e-05 | Z31: 4.520586127e-05 | AE31: 2.9 | AF31: 0.05059294008 | AG31: 0.05048107118 | AH31: 4.274102337e-05 | AI31: 4.274102337e-05
D32: 0.0471238898 | E32: 0.04710645071 | F32: 0.04672073805 | G32: -0.0003857126552 | H32: 0.0003857126552 | M32: 3 | N32: 0.05233595624 | O32: 0.04811993193 | P32: -0.004216024311 | Q32: 0.004216024311 | V32: 0.0471238898 | W32: 0.04710645071 | X32: 0.04705692776 | Y32: -3.904577743e-05 | Z32: 3.904577743e-05 | AE32: 3 | AF32: 0.05233595624 | AG32: 0.05222786389 | AH32: 4.680939733e-05 | AI32: 4.680939733e-05
D33: 0.04869468613 | E33: 0.0486754445 | F33: 0.04833933188 | G33: -0.0003361126146 | H33: 0.0003361126146 | M33: 3.1 | N33: 0.05407881298 | O33: 0.04995019166 | P33: -0.004128621327 | Q33: 0.004128621327 | V33: 0.04869468613 | W33: 0.0486754445 | X33: 0.04862725637 | Y33: -3.301987862e-05 | Z33: 3.301987862e-05 | AE33: 3.1 | AF33: 0.05407881298 | AG33: 0.05397443247 | AH33: 5.074804063e-05 | AI33: 5.074804063e-05
D34: 0.05026548246 | E34: 0.05024431818 | F34: 0.04995709018 | G34: -0.0002872280034 | H34: 0.0002872280034 | M34: 3.2 | N34: 0.05582150499 | O34: 0.05177927046 | P34: -0.004042234533 | Q34: 0.004042234533 | V34: 0.05026548246 | W34: 0.05024431818 | X34: 0.05019744072 | Y34: -2.712677809e-05 | Z34: 2.712677809e-05 | AE34: 3.2 | AF34: 0.05582150499 | AG34: 0.05572077214 | AH34: 5.455866957e-05 | AI34: 5.455866957e-05
D35: 0.05183627878 | E35: 0.05181306789 | F35: 0.05157401294 | G35: -0.0002390549506 | H35: 0.0002390549506 | M35: 3.3 | N35: 0.05756402696 | O35: 0.05360716834 | P35: -0.003956858618 | Q35: 0.003956858618 | V35: 0.05183627878 | W35: 0.05181306789 | X35: 0.05176747718 | Y35: -2.136509514e-05 | Z35: 2.136509514e-05 | AE35: 3.3 | AF35: 0.05756402696 | AG35: 0.05746687811 | AH35: 5.824299119e-05 | AI35: 5.824299119e-05
D36: 0.05340707511 | E36: 0.05338168976 | F36: 0.05319010017 | G36: -0.0001915895855 | H36: 0.0001915895855 | M36: 3.4 | N36: 0.05930637358 | O36: 0.0554338853 | P36: -0.003872488276 | Q36: 0.003872488276 | V36: 0.05340707511 | W36: 0.05338168976 | X36: 0.05333736211 | Y36: -1.57334552e-05 | Z36: 1.57334552e-05 | AE36: 3.4 | AF36: 0.05930637358 | AG36: 0.05921274562 | AH36: 6.180270326e-05 | AI36: 6.180270326e-05
D37: 0.05497787144 | E37: 0.05495017991 | F37: 0.05480535187 | G37: -0.0001448280375 | H37: 0.0001448280375 | M37: 3.5 | N37: 0.06104853953 | O37: 0.05725942134 | P37: -0.003789118199 | Q37: 0.003789118199 | V37: 0.05497787144 | W37: 0.05495017991 | X37: 0.05490709186 | Y37: -1.023048974e-05 | Z37: 1.023048974e-05 | AE37: 3.5 | AF37: 0.06104853953 | AG37: 0.06095836987 | AH37: 6.523949431e-05 | AI37: 6.523949431e-05
D38: 0.05654866776 | E38: 0.05651853448 | F38: 0.05641976805 | G38: -9.876643671e-05 | H38: 9.876643671e-05 | M38: 3.6 | N38: 0.06279051953 | O38: 0.05908377645 | P38: -0.00370674308 | Q38: 0.00370674308 | V38: 0.05654866776 | W38: 0.05651853448 | X38: 0.0564766628 | Y38: -4.854836331e-06 | Z38: 4.854836331e-06 | AE38: 3.6 | AF38: 0.06279051953 | AG38: 0.06270374609 | AH38: 6.855504357e-05 | AI38: 6.855504357e-05
D39: 0.05811946409 | E39: 0.0580867496 | F39: 0.05803334868 | G39: -5.340091327e-05 | H39: 5.340091327e-05 | M39: 3.7 | N39: 0.06453230825 | O39: 0.06090695064 | P39: -0.003625357612 | Q39: 0.003625357612 | V39: 0.05811946409 | W39: 0.0580867496 | X39: 0.05804607129 | Y39: 3.94861389e-07 | Z39: 3.94861389e-07 | AE39: 3.7 | AF39: 0.06453230825 | AG39: 0.0644488695 | AH39: 7.175102103e-05 | AI39: 7.175102103e-05
D40: 0.05969026042 | E40: 0.05965482139 | F40: 0.05964609379 | G40: -8.727597795e-06 | H40: 8.727597795e-06 | M40: 3.8 | N40: 0.0662739004 | O40: 0.06272894391 | P40: -0.00354495649 | Q40: 0.00354495649 | V40: 0.05969026042 | W40: 0.05965482139 | X40: 0.05961531369 | Y40: 5.519953696e-06 | Z40: 5.519953696e-06 | AE40: 3.8 | AF40: 0.0662739004 | AG40: 0.06619373531 | AH40: 7.482908742e-05 | AI40: 7.482908742e-05
D41: 0.06126105675 | E41: 0.06122274599 | F41: 0.06125800337 | G41: 3.525737879e-05 | H41: 3.525737879e-05 | M41: 3.9 | N41: 0.06801529067 | O41: 0.06454975626 | P41: -0.003465534409 | Q41: 0.003465534409 | V41: 0.06126105675 | W41: 0.06122274599 | X41: 0.06118438636 | Y41: 1.052178479e-05 | Z41: 1.052178479e-05 | AE41: 3.9 | AF41: 0.06801529067 | AG41: 0.06793833875 | AH41: 7.77908942e-05 | AI41: 7.77908942e-05
D42: 0.06283185307 | E42: 0.06279051953 | F42: 0.06286907741 | G42: 7.855788517e-05 | H42: 7.855788517e-05 | M42: 4 | N42: 0.06975647374 | O42: 0.06636938768 | P42: -0.003387086063 | Q42: 0.003387086063 | V42: 0.06283185307 | W42: 0.06279051953 | X42: 0.06275328567 | Y42: 1.54016928e-05 | Z42: 1.54016928e-05 | AE42: 4 | AF42: 0.06975647374 | AG42: 0.06968267503 | AH42: 8.063808358e-05 | AI42: 8.063808358e-05
D43: 0.0644026494 | E43: 0.06435813814 | F43: 0.06447931593 | G43: 0.0001211777897 | H43: 0.0001211777897 | M43: 4.1 | N43: 0.07149744433 | O43: 0.06818783818 | P43: -0.00330960615 | Q43: 0.00330960615 | V43: 0.0644026494 | W43: 0.06435813814 | X43: 0.06432200796 | Y43: 2.016100976e-05 | Z43: 2.016100976e-05 | AE43: 4.1 | AF43: 0.07149744433 | AG43: 0.07142673938 | AH43: 8.337228851e-05 | AI43: 8.337228851e-05
D44: 0.06597344573 | E44: 0.06592559795 | F44: 0.06608871891 | G44: 0.0001631209603 | H44: 0.0001631209603 | M44: 4.2 | N44: 0.07323819713 | O44: 0.07000510776 | P44: -0.003233089365 | Q44: 0.003233089365 | V44: 0.06597344573 | W44: 0.06592559795 | X44: 0.06589054961 | Y44: 2.480106166e-05 | Z44: 2.480106166e-05 | AE44: 4.2 | AF44: 0.07323819713 | AG44: 0.07317052701 | AH44: 8.599513268e-05 | AI44: 8.599513268e-05
D45: 0.06754424205 | E45: 0.0674928951 | F45: 0.06769728636 | G45: 0.0002043912645 | H45: 0.0002043912645 | M45: 4.3 | N45: 0.07497872683 | O45: 0.07182119642 | P45: -0.003157530406 | Q45: 0.003157530406 | V45: 0.06754424205 | W45: 0.0674928951 | X45: 0.06745890696 | Y45: 2.932316838e-05 | Z45: 2.932316838e-05 | AE45: 4.3 | AF45: 0.07497872683 | AG45: 0.07491403314 | AH45: 8.850823054e-05 | AI45: 8.850823054e-05
D46: 0.06911503838 | E46: 0.06906002571 | F46: 0.06930501828 | G46: 0.0002449925694 | H46: 0.0002449925694 | M46: 4.4 | N46: 0.07671902813 | O46: 0.07363610415 | P46: -0.003082923972 | Q46: 0.003082923972 | V46: 0.06911503838 | W46: 0.06906002571 | X46: 0.0690270764 | Y46: 3.372864375e-05 | Z46: 3.372864375e-05 | AE46: 4.4 | AF46: 0.07671902813 | AG46: 0.07665725299 | AH46: 9.091318725e-05 | AI46: 9.091318725e-05
D47: 0.07068583471 | E47: 0.07062698593 | F47: 0.07091191467 | G47: 0.0002849287419 | H47: 0.0002849287419 | M47: 4.5 | N47: 0.07845909573 | O47: 0.07544983097 | P47: -0.00300926476 | Q47: 0.00300926476 | V47: 0.07068583471 | W47: 0.07062698593 | X47: 0.07059505427 | Y47: 3.801879551e-05 | Z47: 3.801879551e-05 | AE47: 4.5 | AF47: 0.07845909573 | AG47: 0.07840018178 | AH47: 9.321159875e-05 | AI47: 9.321159875e-05
D48: 0.07225663103 | E48: 0.07219377188 | F48: 0.07251797553 | G48: 0.0003242036482 | H48: 0.0003242036482 | M48: 4.6 | N48: 0.08019892433 | O48: 0.07726237686 | P48: -0.002936547471 | Q48: 0.002936547471 | V48: 0.07225663103 | W48: 0.07219377188 | X48: 0.07216283693 | Y48: 4.219492534e-05 | Z48: 4.219492534e-05 | AE48: 4.6 | AF48: 0.08019892433 | AG48: 0.08014281474 | AH48: 9.540505173e-05 | AI48: 9.540505173e-05
D49: 0.07382742736 | E49: 0.0737603797 | F49: 0.07412320086 | G49: 0.0003628211542 | H49: 0.0003628211542 | M49: 4.7 | N49: 0.08193850863 | O49: 0.07907374183 | P49: -0.002864766804 | Q49: 0.002864766804 | V49: 0.07382742736 | W49: 0.0737603797 | X49: 0.07373042075 | Y49: 4.625832883e-05 | Z49: 4.625832883e-05 | AE49: 4.7 | AF49: 0.08193850863 | AG49: 0.08188514707 | AH49: 9.74951236e-05 | AI49: 9.74951236e-05
D50: 0.07539822369 | E50: 0.07532680553 | F50: 0.07572759065 | G50: 0.0004007851254 | H50: 0.0004007851254 | M50: 4.8 | N50: 0.08367784333 | O50: 0.08088392587 | P50: -0.002793917461 | Q50: 0.002793917461 | V50: 0.07539822369 | W50: 0.07532680553 | X50: 0.07529780209 | Y50: 5.021029551e-05 | Z50: 5.021029551e-05 | AE50: 4.8 | AF50: 0.08367784333 | AG50: 0.083627174 | AH50: 9.948338255e-05 | AI50: 9.948338255e-05
D51: 0.07696902001 | E51: 0.07689304549 | F51: 0.07733114492 | G51: 0.0004380994268 | H51: 0.0004380994268 | M51: 4.9 | N51: 0.08541692314 | O51: 0.08269292899 | P51: -0.002723994142 | Q51: 0.002723994142 | V51: 0.07696902001 | W51: 0.07689304549 | X51: 0.07686497731 | Y51: 5.405210885e-05 | Z51: 5.405210885e-05 | AE51: 4.9 | AF51: 0.08541692314 | AG51: 0.08536889075 | AH51: 0.0001013713875 | AI51: 0.0001013713875
D52: 0.07853981634 | E52: 0.07845909573 | F52: 0.07893386365 | G52: 0.0004747679228 | H52: 0.0004747679228 | M52: 5 | N52: 0.08715574275 | O52: 0.0845007512 | P52: -0.002654991552 | Q52: 0.002654991552 | V52: 0.07853981634 | W52: 0.07845909573 | X52: 0.07843194276 | Y52: 5.778504622e-05 | Z52: 5.778504622e-05 | AE52: 5 | AF52: 0.08715574275 | AG52: 0.08711029254 | AH52: 0.0001031606882 | AI52: 0.0001031606882
D53: 0.08011061267 | E53: 0.08002495237 | F53: 0.08053574685 | G53: 0.0005107944777 | H53: 0.0005107944777 | M53: 5.1 | N53: 0.08889429687 | O53: 0.08630739247 | P53: -0.002586904392 | Q53: 0.002586904392 | V53: 0.08011061267 | W53: 0.08002495237 | X53: 0.07999869482 | Y53: 6.141037895e-05 | Z53: 6.141037895e-05 | AE53: 5.1 | AF53: 0.08889429687 | AG53: 0.08885137459 | AH53: 0.0001048528249 | AI53: 0.0001048528249
D54: 0.08168140899 | E54: 0.08159061157 | F54: 0.08213679452 | G54: 0.0005461829549 | H54: 0.0005461829549 | M54: 5.2 | N54: 0.0906325802 | O54: 0.08811285283 | P54: -0.002519727367 | Q54: 0.002519727367 | V54: 0.08168140899 | W54: 0.08159061157 | X54: 0.08156522983 | Y54: 6.492937227e-05 | Z54: 6.492937227e-05 | AE54: 5.2 | AF54: 0.0906325802 | AG54: 0.09059213211 | AH54: 0.000106449329 | AI54: 0.000106449329
D55: 0.08325220532 | E55: 0.08315606944 | F55: 0.08373700666 | G55: 0.0005809372176 | H55: 0.0005809372176 | M55: 5.3 | N55: 0.09237058745 | O55: 0.08991713226 | P55: -0.002453455182 | Q55: 0.002453455182 | V55: 0.08325220532 | W55: 0.08315606944 | X55: 0.08313154417 | Y55: 6.834328537e-05 | Z55: 6.834328537e-05 | AE55: 5.3 | AF55: 0.09237058745 | AG55: 0.09233256033 | AH55: 0.0001079517224 | AI55: 0.0001079517224
D56: 0.08482300165 | E56: 0.08472132214 | F56: 0.08533638327 | G56: 0.0006150611284 | H56: 0.0006150611284 | M56: 5.4 | N56: 0.09410831332 | O56: 0.09172023078 | P56: -0.002388082542 | Q56: 0.002388082542 | V56: 0.08482300165 | W56: 0.08472132214 | X56: 0.08469763419 | Y56: 7.165337135e-05 | Z56: 7.165337135e-05 | AE56: 5.4 | AF56: 0.09410831332 | AG56: 0.09407265447 | AH56: 0.0001093615177 | AI56: 0.0001093615177
D57: 0.08639379797 | E57: 0.0862863658 | F57: 0.08693492435 | G57: 0.0006485585494 | H57: 0.0006485585494 | M57: 5.5 | N57: 0.09584575252 | O57: 0.09352214837 | P57: -0.002323604154 | Q57: 0.002323604154 | V57: 0.08639379797 | W57: 0.0862863658 | X57: 0.08626349625 | Y57: 7.486087726e-05 | Z57: 7.486087726e-05 | AE57: 5.5 | AF57: 0.09584575252 | AG57: 0.09581240973 | AH57: 0.0001106802186 | AI57: 0.0001106802186
D58: 0.0879645943 | E58: 0.08785119655 | F58: 0.08853262989 | G58: 0.0006814333422 | H58: 0.0006814333422 | M58: 5.6 | N58: 0.09758289976 | O58: 0.09532288503 | P58: -0.002260014726 | Q58: 0.002260014726 | V58: 0.0879645943 | W58: 0.08785119655 | X58: 0.08782912671 | Y58: 7.796704408e-05 | Z58: 7.796704408e-05 | AE58: 5.6 | AF58: 0.09758289976 | AG58: 0.09755182136 | AH58: 0.0001119093191 | AI58: 0.0001119093191
D59: 0.08953539063 | E59: 0.08941581054 | F59: 0.09012949991 | G59: 0.0007136893679 | H59: 0.0007136893679 | M59: 5.7 | N59: 0.09931974974 | O59: 0.09712244078 | P59: -0.002197308966 | Q59: 0.002197308966 | V59: 0.08953539063 | W59: 0.08941581054 | X59: 0.08939452194 | Y59: 8.097310672e-05 | Z59: 8.097310672e-05 | AE59: 5.7 | AF59: 0.09931974974 | AG59: 0.09929088455 | AH59: 0.0001130503042 | AI59: 0.0001130503042
D60: 0.09110618695 | E60: 0.0909802039 | F60: 0.09172553439 | G60: 0.0007453304869 | H60: 0.0007453304869 | M60: 5.8 | N60: 0.1010562972 | O60: 0.0989208156 | P60: -0.002135481583 | Q60: 0.002135481583 | V60: 0.09110618695 | W60: 0.0909802039 | X60: 0.09095967829 | Y60: 8.388029402e-05 | Z60: 8.388029402e-05 | AE60: 5.8 | AF60: 0.1010562972 | AG60: 0.1010295945 | AH60: 0.0001141046499 | AI60: 0.0001141046499
D61: 0.09267698328 | E61: 0.09254437278 | F61: 0.09332073334 | G61: 0.0007763605593 | H61: 0.0007763605593 | M61: 5.9 | N61: 0.1027925368 | O61: 0.1007180095 | P61: -0.002074527288 | Q61: 0.002074527288 | V61: 0.09267698328 | W61: 0.09254437278 | X61: 0.09252459213 | Y61: 8.668982877e-05 | Z61: 8.668982877e-05 | AE61: 5.9 | AF61: 0.1027925368 | AG61: 0.1027679465 | AH61: 0.0001150738225 | AI61: 0.0001150738225
D62: 0.09424777961 | E62: 0.09410831332 | F62: 0.09491509676 | G62: 0.0008067834445 | H62: 0.0008067834445 | M62: 6 | N62: 0.1045284633 | O62: 0.1025140225 | P62: -0.00201444079 | Q62: 0.00201444079 | V62: 0.09424777961 | W62: 0.09410831332 | X62: 0.09408925982 | Y62: 8.940292768e-05 | Z62: 8.940292768e-05 | AE62: 6 | AF62: 0.1045284633 | AG62: 0.1045059358 | AH62: 0.0001159592794 | AI62: 0.0001159592794
D63: 0.09581857593 | E63: 0.09567202165 | F63: 0.09650862465 | G63: 0.0008366030014 | H63: 0.0008366030014 | M63: 6.1 | N63: 0.1062640713 | O63: 0.1043088545 | P63: -0.001955216804 | Q63: 0.001955216804 | V63: 0.09581857593 | W63: 0.09567202165 | X63: 0.09565367771 | Y63: 9.202080143e-05 | Z63: 9.202080143e-05 | AE63: 6.1 | AF63: 0.1062640713 | AG63: 0.1062435574 | AH63: 0.0001167624686 | AI63: 0.0001167624686
D64: 0.09738937226 | E64: 0.09723549392 | F64: 0.09810131701 | G64: 0.0008658230883 | H64: 0.0008658230883 | M64: 6.2 | N64: 0.1079993557 | O64: 0.1061025057 | P64: -0.001896850041 | Q64: 0.001896850041 | V64: 0.09738937226 | W64: 0.09723549392 | X64: 0.09721784217 | Y64: 9.454465459e-05 | Z64: 9.454465459e-05 | AE64: 6.2 | AF64: 0.1079993557 | AG64: 0.1079808068 | AH64: 0.0001174848291 | AI64: 0.0001174848291
D65: 0.09896016859 | E65: 0.09879872627 | F65: 0.09969317384 | G65: 0.0008944475628 | H65: 0.0008944475628 | M65: 6.3 | N65: 0.1097343111 | O65: 0.1078949759 | P65: -0.001839335215 | Q65: 0.001839335215 | V65: 0.09896016859 | W65: 0.09879872627 | X65: 0.09878174956 | Y65: 9.697568572e-05 | Z65: 9.697568572e-05 | AE65: 6.3 | AF65: 0.1097343111 | AG65: 0.109717679 | AH65: 0.0001181277903 | AI65: 0.0001181277903
D66: 0.1005309649 | E66: =SIN(x) -> 0.1003617149 | F66: =y0*(x-x00)*(x-x000)/(x0-x00)/(x0-x000)+y00*(x-x0)*(x-x000)/(x00-x0)/(x00-x000)+y000*(x-x0)*(x-x00)/(x000-x0)/(x000-x00) -> 0.1012841951 | G66: 0.0009224802821 | H66: 0.0009224802821 | M66: 6.4 | N66: =SIN(xx*PI()/180) -> 0.1114689322 | O66: =yy0*(xx-xx00)*(xx-xx000)/(xx0-xx00)/(xx0-xx000)+yy00*(xx-xx0)*(xx-xx000)/(xx00-xx0)/(xx00-xx000)+yy000*(xx-xx0)*(xx-xx00)/(xx000-xx0)/(xx000-xx00) -> 0.1096862652 | P66: -0.001782667042 | Q66: 0.001782667042 | V66: 0.1005309649 | W66: =SIN(xxx) -> 0.1003617149 | X66: =yyy0*(xxx-xxx00)*(xxx-xxx000)*(xxx-xxx0000)/(xxx0-xxx00)/(xxx0-xxx000)/(xxx0-xxx0000)+yyy00*(xxx-xxx0)*(xxx-xxx000)*(xxx-xxx0000)/(xxx00-xxx0)/(xxx00-xxx000)/(xxx00-xxx0000)+yyy000*(xxx-xxx0)*(xxx-xxx00)*(xxx-xxx0000)/(xxx000-xxx0)/(xxx000-xxx00)/(xxx000-xxx0000)+yyy0000*(xxx-xxx0)*(xxx-xxx00)*(xxx-xxx000)/(xxx0000-xxx0)/(xxx0000-xxx00)/(xxx0000-xxx000) -> 0.1003453962 | Y66: 9.931508729e-05 | Z66: 9.931508729e-05 | AE66: 6.4 | AF66: =SIN(xxxx*PI()/180) -> 0.1114689322 | AG66: =yyyy0*(xxxx-xxxx00)*(xxxx-xxxx000)*(xxxx-xxxx0000)/(xxxx0-xxxx00)/(xxxx0-xxxx000)/(xxxx0-xxxx0000)+yyyy00*(xxxx-xxxx0)*(xxxx-xxxx000)*(xxxx-xxxx0000)/(xxxx00-xxxx0)/(xxxx00-xxxx000)/(xxxx00-xxxx0000)+yyyy000*(xxxx-xxxx0)*(xxxx-xxxx00)*(xxxx-xxxx0000)/(xxxx000-xxxx0)/(xxxx000-xxxx00)/(xxxx000-xxxx0000)+yyyy0000*(xxxx-xxxx0)*(xxxx-xxxx00)*(xxxx-xxxx000)/(xxxx0000-xxxx0)/(xxxx0000-xxxx00)/(xxxx0000-xxxx000) -> 0.1114541694 | AH66: 0.0001186927727 | AI66: 0.0001186927727
D67: =D66+dx -> 0.1021017612 | E67: 0.1019244558 | F67: 0.1028743809 | G67: =F67-E67 -> 0.0009499251027 | H67: =ABS(G67) -> 0.0009499251027 | M67: =M66+dxx -> 6.5 | N67: 0.1132032138 | O67: 0.1114763735 | P67: =O67-N67 -> -0.001726840238 | Q67: =ABS(P67) -> 0.001726840238 | V67: =V66+dxxx0 -> 0.1021017612 | W67: 0.1019244558 | X67: 0.1019087786 | Y67: 0.0001015640457 | Z67: 0.0001015640457 | AE67: 6.5 | AF67: 0.1132032138 | AG67: 0.1131902731 | AH67: 0.0001191811874 | AI67: 0.0001191811874
D68: 0.1036725576 | E68: 0.1034869453 | F68: 0.1044637311 | G68: 0.0009767858806 | H68: 0.0009767858806 | M68: 6.6 | N68: 0.1149371505 | O68: 0.113265301 | P68: -0.001671849519 | Q68: 0.001671849519 | V68: 0.1036725576 | W68: 0.1034869453 | X68: 0.1034718929 | Y68: 0.0001037237414 | Z68: 0.0001037237414 | AE68: 6.6 | AF68: 0.1149371505 | AG68: 0.1149259853 | AH68: 0.0001195944365 | AI68: 0.0001195944365
D69: 0.1052433539 | E69: 0.1050491794 | F69: 0.1060522458 | G69: 0.001003066471 | H69: 0.001003066471 | M69: 6.7 | N69: 0.1166707371 | O69: 0.1150530475 | P69: -0.001617689604 | Q69: 0.001617689604 | V69: 0.1052433539 | W69: 0.1050491794 | X69: 0.1050347356 | Y69: 0.0001057953486 | Z69: 0.0001057953486 | AE69: 6.7 | AF69: 0.1166707371 | AG69: 0.1166613013 | AH69: 0.0001199339125 | AI69: 0.0001199339125
D70: 0.1068141502 | E70: 0.1066111543 | F70: 0.107639925 | G70: 0.001028770728 | H70: 0.001028770728 | M70: 6.8 | N70: 0.1184039683 | O70: 0.1168396131 | P70: -0.001564355213 | Q70: 0.001564355213 | V70: 0.1068141502 | W70: 0.1066111543 | X70: 0.1065973031 | Y70: 0.0001077800355 | Z70: 0.0001077800355 | AE70: 6.8 | AF70: 0.1184039683 | AG70: 0.1183962163 | AH70: 0.0001202009991 | AI70: 0.0001202009991
D71: 0.1083849465 | E71: 0.1081728661 | F71: 0.1092267686 | G71: 0.001053902507 | H71: 0.001053902507 | M71: 6.9 | N71: 0.1201368388 | O71: 0.1186249978 | P71: -0.001511841064 | Q71: 0.001511841064 | V71: 0.1083849465 | W71: 0.1081728661 | X71: 0.1081595916 | Y71: 0.0001096789644 | Z71: 0.0001096789644 | AE71: 6.9 | AF71: 0.1201368388 | AG71: 0.1201307254 | AH71: 0.0001203970705 | AI71: 0.0001203970705
D72: 0.1099557429 | E72: 0.1097343111 | F72: 0.1108127768 | G72: 0.00107846566 | H72: 0.00107846566 | M72: 7 | N72: 0.1218693434 | O72: 0.1204092015 | P72: -0.001460141881 | Q72: 0.001460141881 | V72: 0.1099557429 | W72: 0.1097343111 | X72: 0.1097215976 | Y72: 0.0001114932915 | Z72: 0.0001114932915 | AE72: 7 | AF72: 0.1218693434 | AG72: 0.121864824 | AH72: 0.0001205234917 | AI72: 0.0001205234917
D73: 0.1115265392 | E73: 0.1112954853 | F73: 0.1123979493 | G73: 0.001102464041 | H73: 0.001102464041 | M73: 7.1 | N73: 0.1236014767 | O73: 0.1221922244 | P73: -0.001409252384 | Q73: 0.001409252384 | V73: 0.1115265392 | W73: 0.1112954853 | X73: 0.1112833174 | Y73: 0.0001132241668 | Z73: 0.0001132241668 | AE73: 7.1 | AF73: 0.1236014767 | AG73: 0.1235985073 | AH73: 0.0001205816188 | AI73: 0.0001205816188
D74: 0.1130973355 | E74: 0.1128563849 | F74: 0.1139822864 | G74: 0.001125901501 | H74: 0.001125901501 | M74: 7.2 | N74: 0.1253332336 | O74: 0.1239740663 | P74: -0.001359167298 | Q74: 0.001359167298 | V74: 0.1130973355 | W74: 0.1128563849 | X74: 0.1128447474 | Y74: 0.0001148727343 | Z74: 0.0001148727343 | AE74: 7.2 | AF74: 0.1253332336 | AG74: 0.1253317704 | AH74: 0.0001205727982 | AI74: 0.0001205727982
D75: 0.1146681319 | E75: 0.114417006 | F75: 0.1155657879 | G75: 0.001148781891 | H75: 0.001148781891 | M75: 7.3 | N75: 0.1270646086 | O75: 0.1257547273 | P75: -0.001309881348 | Q75: 0.001309881348 | V75: 0.1146681319 | W75: 0.114417006 | X75: 0.1144058839 | Y75: 0.000116440132 | Z75: 0.000116440132 | AE75: 7.3 | AF75: 0.1270646086 | AG75: 0.1270646086 | AH75: 0.0001204983674 | AI75: 0.0001204983674
D76: 0.1162389282 | E76: 0.1159773448 | F76: 0.1171484539 | G76: 0.001171109063 | H76: 0.001171109063 | M76: 7.4 | N76: 0.1287955966 | O76: 0.1275342073 | P76: -0.001261389259 | Q76: 0.001261389259 | V76: 0.1162389282 | W76: 0.1159773448 | X76: 0.1159667234 | Y76: 0.000117927492 | Z76: 0.000117927492 | AE76: 7.4 | AF76: 0.1287955966 | AG76: 0.1287970171 | AH76: 0.0001203596548 | AI76: 0.0001203596548
D77: 0.1178097245 | E77: 0.1175373975 | F77: 0.1187302843 | G77: 0.001192886867 | H77: 0.001192886867 | M77: 7.5 | N77: 0.1305261922 | O77: 0.1293125065 | P77: -0.001213685759 | Q77: 0.001213685759 | V77: 0.1178097245 | W77: 0.1175373975 | X77: 0.117527262 | Y77: 0.00011933594 | Z77: 0.00011933594 | AE77: 7.5 | AF77: 0.1305261922 | AG77: 0.1305289911 | AH77: 0.0001201579793 | AI77: 0.0001201579793
D78: 0.1193805208 | E78: 0.1190971601 | F78: 0.1203112792 | G78: 0.00121411915 | H78: 0.00121411915 | M78: 7.6 | N78: 0.1322563903 | O78: 0.1310896247 | P78: -0.001166765576 | Q78: 0.001166765576 | V78: 0.1193805208 | W78: 0.1190971601 | X78: 0.1190874963 | Y78: 0.0001206665959 | Z78: 0.0001206665959 | AE78: 7.6 | AF78: 0.1322563903 | AG78: 0.1322605259 | AH78: 0.0001198946507 | AI78: 0.0001198946507
D79: 0.1209513172 | E79: 0.1206566289 | F79: 0.1218914386 | G79: 0.001234809763 | H79: 0.001234809763 | M79: 7.7 | N79: 0.1339861854 | O79: 0.132865562 | P79: -0.00112062344 | Q79: 0.00112062344 | V79: 0.1209513172 | W79: 0.1206566289 | X79: 0.1206474226 | Y79: 0.0001219205735 | Z79: 0.0001219205735 | AE79: 7.7 | AF79: 0.1339861854 | AG79: 0.1339916166 | AH79: 0.0001195709697 | AI79: 0.0001195709697
D80: 0.1225221135 | E80: 0.1222157999 | F80: 0.1234707625 | G80: 0.001254962553 | H80: 0.001254962553 | M80: 7.8 | N80: 0.1357155724 | O80: 0.1346403184 | P80: -0.00107525408 | Q80: 0.00107525408 | V80: 0.1225221135 | W80: 0.1222157999 | X80: 0.1222070372 | Y80: 0.0001230989806 | Z80: 0.0001230989806 | AE80: 7.8 | AF80: 0.1357155724 | AG80: 0.1357222585 | AH80: 0.0001191882278 | AI80: 0.0001191882278
D81: 0.1240929098 | E81: 0.1237746695 | F81: 0.1250492508 | G81: 0.001274581367 | H81: 0.001274581367 | M81: 7.9 | N81: 0.137444546 | O81: 0.1364138938 | P81: -0.00103065223 | Q81: 0.00103065223 | V81: 0.1240929098 | W81: 0.1237746695 | X81: 0.1237663365 | Y81: 0.0001242029189 | Z81: 0.0001242029189 | AE81: 7.9 | AF81: 0.137444546 | AG81: 0.1374524468 | AH81: 0.0001187477071 | AI81: 0.0001187477071
D82: 0.1256637061 | E82: 0.1253332336 | F82: 0.1266269036 | G82: 0.001293670052 | H82: 0.001293670052 | M82: 8 | N82: 0.139173101 | O82: 0.1381862883 | P82: -0.0009868126218 | Q82: 0.0009868126218 | V82: 0.1256637061 | W82: 0.1253332336 | X82: 0.1253253169 | Y82: 0.000125233484 | Z82: 0.000125233484 | AE82: 8 | AF82: 0.139173101 | AG82: 0.1391821767 | AH82: 0.0001182506808 | AI82: 0.0001182506808
D83: 0.1272345025 | E83: 0.1268914884 | F83: 0.1282037209 | G83: 0.001312232452 | H83: 0.001312232452 | M83: 8.1 | N83: 0.1409012319 | O83: 0.1399575019 | P83: -0.0009437299908 | Q83: 0.0009437299908 | V83: 0.1272345025 | W83: 0.1268914884 | X83: 0.1268839747 | Y83: 0.0001261917656 | Z83: 0.0001261917656 | AE83: 8.1 | AF83: 0.1409012319 | AG83: 0.1409114435 | AH83: 0.0001176984126 | AI83: 0.0001176984126
D84: 0.1288052988 | E84: 0.1284494302 | F84: 0.1297797026 | G84: 0.001330272414 | H84: 0.001330272414 | M84: 8.2 | N84: 0.1426289337 | O84: 0.1417275346 | P84: -0.0009013990726 | Q84: 0.0009013990726 | V84: 0.1288052988 | W84: 0.1284494302 | X84: 0.1284423063 | Y84: 0.0001270788473 | Z84: 0.0001270788473 | AE84: 8.2 | AF84: 0.1426289337 | AG84: 0.1426402423 | AH84: 0.0001170921573 | AI84: 0.0001170921573
D85: 0.1303760951 | E85: 0.130007055 | F85: 0.1313548488 | G85: 0.00134779378 | H85: 0.00134779378 | M85: 8.3 | N85: 0.144356201 | O85: 0.1434963864 | P85: -0.0008598146042 | Q85: 0.0008598146042 | V85: 0.1303760951 | W85: 0.130007055 | X85: 0.130000308 | Y85: 0.0001278958066 | Z85: 0.0001278958066 | AE85: 8.3 | AF85: 0.144356201 | AG85: 0.1443685684 | AH85: 0.0001164331603 | AI85: 0.0001164331603
D86: 0.1319468915 | E86: 0.1315643591 | F86: 0.1329291595 | G86: 0.001364800395 | H86: 0.001364800395 | M86: 8.4 | N86: 0.1460830286 | O86: 0.1452640572 | P86: -0.0008189713242 | Q86: 0.0008189713242 | V86: 0.1319468915 | W86: 0.1315643591 | X86: 0.1315579763 | Y86: 0.000128643715 | Z86: 0.000128643715 | AE86: 8.4 | AF86: 0.1460830286 | AG86: 0.1460964169 | AH86: 0.0001157226579 | AI86: 0.0001157226579
D87: 0.1335176878 | E87: 0.1331213385 | F87: 0.1345026346 | G87: 0.001381296101 | H87: 0.001381296101 | M87: 8.5 | N87: 0.1478094111 | O87: 0.1470305472 | P87: -0.0007788639722 | Q87: 0.0007788639722 | V87: 0.1335176878 | W87: 0.1331213385 | X87: 0.1331153074 | Y87: 0.0001293236379 | Z87: 0.0001293236379 | AE87: 8.5 | AF87: 0.1478094111 | AG87: 0.1478237832 | AH87: 0.0001149618772 | AI87: 0.0001149618772
D88: 0.1350884841 | E88: 0.1346779895 | F88: 0.1360752742 | G88: 0.001397284738 | H88: 0.001397284738 | M88: 8.6 | N88: 0.1495353434 | O88: 0.1487958562 | P88: -0.0007394872895 | Q88: 0.0007394872895 | V88: 0.1350884841 | W88: 0.1346779895 | X88: 0.1346722977 | Y88: 0.000129936635 | Z88: 0.000129936635 | AE88: 8.6 | AF88: 0.1495353434 | AG88: 0.1495506625 | AH88: 0.0001141520363 | AI88: 0.0001141520363
D89: 0.1366592804 | E89: 0.1362343082 | F89: 0.1376470783 | G89: 0.00141277015 | H89: 0.00141277015 | M89: 8.7 | N89: 0.1512608202 | O89: 0.1505599842 | P89: -0.0007008360185 | Q89: 0.0007008360185 | V89: 0.1366592804 | W89: 0.1362343082 | X89: 0.1362289436 | Y89: 0.0001304837594 | Z89: 0.0001304837594 | AE89: 8.7 | AF89: 0.1512608202 | AG89: 0.1512770498 | AH89: 0.0001132943437 | AI89: 0.0001132943437
D90: 0.1382300768 | E90: 0.1377902907 | F90: 0.1392180469 | G90: 0.001427756174 | H90: 0.001427756174 | M90: 8.8 | N90: 0.1529858363 | O90: 0.1523229314 | P90: -0.0006629049032 | Q90: 0.0006629049032 | V90: 0.1382300768 | W90: 0.1377902907 | X90: 0.1377852415 | Y90: 0.0001309660587 | Z90: 0.0001309660587 | AE90: 8.8 | AF90: 0.1529858363 | AG90: 0.1530029406 | AH90: 0.0001123899992 | AI90: 0.0001123899992
D91: 0.1398008731 | E91: 0.1393459332 | F91: 0.1407881799 | G91: 0.001442246651 | H91: 0.001442246651 | M91: 8.9 | N91: 0.1547103863 | O91: 0.1540846976 | P91: -0.0006256886888 | Q91: 0.0006256886888 | V91: 0.1398008731 | W91: 0.1393459332 | X91: 0.1393411877 | Y91: 0.0001313845741 | Z91: 0.0001313845741 | AE91: 8.9 | AF91: 0.1547103863 | AG91: 0.1547283299 | AH91: 0.0001114401931 | AI91: 0.0001114401931
D92: 0.1413716694 | E92: 0.1409012319 | F92: 0.1423574774 | G92: 0.001456245419 | H92: 0.001456245419 | M92: 9 | N92: 0.156434465 | O92: 0.1558452829 | P92: -0.0005891821221 | Q92: 0.0005891821221 | V92: 0.1413716694 | W92: 0.1409012319 | X92: 0.1408967785 | Y92: 0.000131740341 | Z92: 0.000131740341 | AE92: 9 | AF92: 0.156434465 | AG92: 0.1564532131 | AH92: 0.0001104461067 | AI92: 0.0001104461067
D93: 0.1429424657 | E93: 0.142456183 | F93: 0.1439259393 | G93: 0.001469756316 | H93: 0.001469756316 | M93: 9.1 | N93: 0.1581580673 | O93: 0.1576046873 | P93: -0.0005533799512 | Q93: 0.0005533799512 | V93: 0.1429424657 | W93: 0.142456183 | X93: 0.1424520104 | Y93: 0.0001320343887 | Z93: 0.0001320343887 | AE93: 9.1 | AF93: 0.1581580673 | AG93: 0.1581775853 | AH93: 0.000109408912 | AI93: 0.000109408912
D94: 0.1445132621 | E94: 0.1440107826 | F94: 0.1454935657 | G94: 0.001482783178 | H94: 0.001482783178 | M94: 9.2 | N94: 0.1598811877 | O94: 0.1593629108 | P94: -0.0005182769258 | Q94: 0.0005182769258 | V94: 0.1445132621 | W94: 0.1440107826 | X94: 0.1440068797 | Y94: 0.0001322677403 | Z94: 0.0001322677403 | AE94: 9.2 | AF94: 0.1598811877 | AG94: 0.1599014417 | AH94: 0.000108329772 | AI94: 0.000108329772
D95: 0.1460840584 | E95: 0.1455650268 | F95: 0.1470603566 | G95: 0.001495329841 | H95: 0.001495329841 | M95: 9.3 | N95: 0.1616038211 | O95: 0.1611199533 | P95: -0.0004838677969 | Q95: 0.0004838677969 | V95: 0.1460840584 | W95: 0.1455650268 | X95: 0.1455613827 | Y95: 0.0001324414132 | Z95: 0.0001324414132 | AE95: 9.3 | AF95: 0.1616038211 | AG95: 0.1616247776 | AH95: 0.0001072098403 | AI95: 0.0001072098403
D96: 0.1476548547 | E96: 0.1471189118 | F96: 0.148626312 | G96: 0.00150740014 | H96: 0.00150740014 | M96: 9.4 | N96: 0.1633259622 | O96: 0.1628758149 | P96: -0.000450147317 | Q96: 0.000450147317 | V96: 0.1476548547 | W96: 0.1471189118 | X96: 0.1471155158 | Y96: 0.0001325564185 | Z96: 0.0001325564185 | AE96: 9.4 | AF96: 0.1633259622 | AG96: 0.1633475882 | AH96: 0.0001060502616 | AI96: 0.0001060502616
D97: 0.149225651 | E97: 0.1486724339 | F97: 0.1501914318 | G97: 0.001518997909 | H97: 0.001518997909 | M97: 9.5 | N97: 0.1650476059 | O97: 0.1646304956 | P97: -0.0004171102403 | Q97: 0.0004171102403 | V97: 0.149225651 | W97: 0.1486724339 | X97: 0.1486692754 | Y97: 0.0001326137614 | Z97: 0.0001326137614 | AE97: 9.5 | AF97: 0.1650476059 | AG97: 0.1650698687 | AH97: 0.0001048521714 | AI97: 0.0001048521714
D98: 0.1507964474 | E98: 0.1502255891 | F98: 0.1517557161 | G98: 0.001530126981 | H98: 0.001530126981 | M98: 9.6 | N98: 0.1667687467 | O98: 0.1663839954 | P98: -0.0003847513223 | Q98: 0.0003847513223 | V98: 0.1507964474 | W98: 0.1502255891 | X98: 0.1502226578 | Y98: 0.0001326144411 | Z98: 0.0001326144411 | AE98: 9.6 | AF98: 0.1667687467 | AG98: 0.1667916144 | AH98: 0.0001036166958 | AI98: 0.0001036166958
D99: 0.1523672437 | E99: 0.1517783737 | F99: 0.1533191649 | G99: 0.001540791189 | H99: 0.001540791189 | M99: 9.7 | N99: 0.1684893796 | O99: 0.1681363142 | P99: -0.0003530653201 | Q99: 0.0003530653201 | V99: 0.1523672437 | W99: 0.1517783737 | X99: 0.1517756595 | Y99: 0.0001325594507 | Z99: 0.0001325594507 | AE99: 9.7 | AF99: 0.1684893796 | AG99: 0.1685128204 | AH99: 0.000102344952 | AI99: 0.000102344952
D100: 0.15393804 | E100: 0.1533307837 | F100: 0.1548817781 | G100: 0.001550994363 | H100: 0.001550994363 | M100: 9.8 | N100: 0.1702094992 | O100: 0.1698874522 | P100: -0.0003220469923 | Q100: 0.0003220469923 | V100: 0.15393804 | W100: 0.1533307837 | X100: 0.1533282767 | Y100: 0.0001324497774 | Z100: 0.0001324497774 | AE100: 9.8 | AF100: 0.1702094992 | AG100: 0.1702334819 | AH100: 0.0001010380481 | AI100: 0.0001010380481
D101: 0.1555088364 | E101: 0.1548828155 | F101: 0.1564435558 | G101: 0.001560740335 | H101: 0.001560740335 | M101: 9.9 | N101: 0.1719291003 | O101: 0.1716374092 | P101: -0.0002916910993 | Q101: 0.0002916910993 | V101: 0.1555088364 | W101: 0.1548828155 | X101: 0.1548805058 | Y101: 0.0001322864022 | Z101: 0.0001322864022 | AE101: 9.9 | AF101: 0.1719291003 | AG101: 0.1719535942 | AH101: 9.969708269e-05 | AI101: 9.969708269e-05
D102: 0.1570796327 | E102: 0.156434465 | F102: 0.158004498 | G102: 0.001570032934 | H102: 0.001570032934 | M102: 10 | N102: 0.1736481777 | O102: 0.1733861853 | P102: -0.0002619924027 | Q102: 0.0002619924027 | V102: 0.1570796327 | W102: 0.156434465 | X102: 0.1564323432 | Y102: 0.0001320703002 | Z102: 0.0001320703002 | AE102: 10 | AF102: 0.1736481777 | AG102: 0.1736731526 | AH102: 9.83231456e-05 | AI102: 9.83231456e-05
D103: 0.158650429 | E103: 0.1579857286 | F103: 0.1595646046 | G103: 0.001578875987 | H103: 0.001578875987 | M103: 10.1 | N103: 0.1753667261 | O103: 0.1751337804 | P103: -0.000232945666 | Q103: 0.000232945666 | V103: 0.158650429 | W103: 0.1579857286 | X103: 0.1579837852 | Y103: 0.0001318024405 | Z103: 0.0001318024405 | AE103: 10.1 | AF103: 0.1753667261 | AG103: 0.1753921521 | AH103: 9.691731735e-05 | AI103: 9.691731735e-05
D104: 0.1602212253 | E104: 0.1595366024 | F104: 0.1611238757 | G104: 0.001587273324 | H104: 0.001587273324 | M104: 10.2 | N104: 0.1770847403 | O104: 0.1768801947 | P104: -0.0002045456542 | Q104: 0.0002045456542 | V104: 0.1602212253 | W104: 0.1595366024 | X104: 0.1595348282 | Y104: 0.0001314837862 | Z104: 0.0001314837862 | AE104: 10.2 | AF104: 0.1770847403 | AG104: 0.1771105881 | AH104: 9.548066934e-05 | AI104: 9.548066934e-05
D105: 0.1617920217 | E105: 0.1610870825 | F105: 0.1626823113 | G105: 0.00159522877 | H105: 0.00159522877 | M105: 10.3 | N105: 0.1788022151 | O105: 0.178625428 | P105: -0.0001767871339 | Q105: 0.0001767871339 | V105: 0.1617920217 | W105: 0.1610870825 | X105: 0.1610854686 | Y105: 0.0001311152942 | Z105: 0.0001311152942 | AE105: 10.3 | AF105: 0.1788022151 | AG105: 0.1788284558 | AH105: 9.401426384e-05 | AI105: 9.401426384e-05
D106: 0.163362818 | E106: 0.1626371652 | F106: 0.1642399113 | G106: 0.001602746151 | H106: 0.001602746151 | M106: 10.4 | N106: 0.1805191453 | O106: 0.1803694804 | P106: -0.0001496648733 | Q106: 0.0001496648733 | V106: 0.163362818 | W106: 0.1626371652 | X106: 0.1626357027 | Y106: 0.0001306979158 | Z106: 0.0001306979158 | AE106: 10.4 | AF106: 0.1805191453 | AG106: 0.1805457503 | AH106: 9.251915397e-05 | AI106: 9.251915397e-05
D107: 0.1649336143 | E107: 0.1641868466 | F107: 0.1657966759 | G107: 0.001609829292 | H107: 0.001609829292 | M107: 10.5 | N107: 0.1822355255 | O107: 0.1821123518 | P107: -0.0001231736425 | Q107: 0.0001231736425 | V107: 0.1649336143 | W107: 0.1641868466 | X107: 0.1641855269 | Y107: 0.0001302325957 | Z107: 0.0001302325957 | AE107: 10.5 | AF107: 0.1822355255 | AG107: 0.182262467 | AH107: 9.099638376e-05 | AI107: 9.099638376e-05
D108: 0.1665044106 | E108: 0.1657361228 | F108: 0.1673526048 | G108: 0.001616482016 | H108: 0.001616482016 | M108: 10.6 | N108: 0.1839513506 | O108: 0.1838540424 | P108: -9.730821305e-05 | Q108: 9.730821305e-05 | V108: 0.1665044106 | W108: 0.1657361228 | X108: 0.1657349375 | Y108: 0.0001297202732 | Z108: 0.0001297202732 | AE108: 10.6 | AF108: 0.1839513506 | AG108: 0.183978601 | AH108: 8.944698807e-05 | AI108: 8.944698807e-05
D109: 0.168075207 | E109: 0.1672849901 | F109: 0.1689076983 | G109: 0.001622708147 | H109: 0.001622708147 | M109: 10.7 | N109: 0.1856666154 | O109: 0.185594552 | P109: -7.206335818e-05 | Q109: 7.206335818e-05 | V109: 0.168075207 | W109: 0.1672849901 | X109: 0.1672839309 | Y109: 0.0001291618812 | Z109: 0.0001291618812 | AE109: 10.7 | AF109: 0.1856666154 | AG109: 0.1856941475 | AH109: 8.787199267e-05 | AI109: 8.787199267e-05
D110: 0.1696460033 | E110: 0.1688334447 | F110: 0.1704619562 | G110: 0.001628511506 | H110: 0.001628511506 | M110: 10.8 | N110: 0.1873813146 | O110: 0.1873338807 | P110: -4.743385294e-05 | Q110: 4.743385294e-05 | V110: 0.1696460033 | W110: 0.1688334447 | X110: 0.1688325035 | Y110: 0.0001285583467 | Z110: 0.0001285583467 | AE110: 10.8 | AF110: 0.1873813146 | AG110: 0.1874091017 | AH110: 8.627241419e-05 | AI110: 8.627241419e-05
D111: 0.1712167996 | E111: 0.1703814827 | F111: 0.1720153786 | G111: 0.001633895912 | H111: 0.001633895912 | M111: 10.9 | N111: 0.189095443 | O111: 0.1890720285 | P111: -2.341447406e-05 | Q111: 2.341447406e-05 | V111: 0.1712167996 | W111: 0.1703814827 | X111: 0.1703806517 | Y111: 0.0001279105907 | Z111: 0.0001279105907 | AE111: 10.9 | AF111: 0.189095443 | AG111: 0.189123459 | AH111: 8.464926014e-05 | AI111: 8.464926014e-05
D112: 0.1727875959 | E112: 0.1719291003 | F112: 0.1735679655 | G112: 0.001638865188 | H112: 0.001638865188 | M112: 11 | N112: 0.1908089954 | O112: 0.1908089954 | P112: 0 | Q112: 0 | V112: 0.1727875959 | W112: 0.1719291003 | X112: 0.1719283717 | Y112: 0.0001272195283 | Z112: 0.0001272195283 | AE112: 11 | AF112: 0.1908089954 | AG112: 0.1908372144 | AH112: 8.300352894e-05 | AI112: 8.300352894e-05
D113: 0.1743583923 | E113: 0.1734762936 | F113: 0.1751197168 | G113: 0.001643423149 | H113: 0.001643423149 | M113: 11.1 | N113: 0.1925219665 | O113: 0.1925447813 | P113: 2.281478901e-05 | Q113: 2.281478901e-05 | V113: 0.1743583923 | W113: 0.1734762936 | X113: 0.1734756599 | Y113: 0.0001264860684 | Z113: 0.0001264860684 | AE113: 11.1 | AF113: 0.1925219665 | AG113: 0.1925503633 | AH113: 8.133620986e-05 | AI113: 8.133620986e-05
D114: 0.1759291886 | E114: 0.175023059 | F114: 0.1766706326 | G114: 0.001647573615 | H114: 0.001647573615 | M114: 11.2 | N114: 0.1942343512 | O114: 0.1942793863 | P114: 4.503511098e-05 | Q114: 4.503511098e-05 | V114: 0.1759291886 | W114: 0.175023059 | X114: 0.1750225128 | Y114: 0.0001257111141 | Z114: 0.0001257111141 | AE114: 11.2 | AF114: 0.1942343512 | AG114: 0.1942629008 | AH114: 7.96482831e-05 | AI114: 7.96482831e-05
D115: 0.1774999849 | E115: 0.1765693925 | F115: 0.1782207129 | G115: 0.001651320402 | H115: 0.001651320402 | M115: 11.3 | N115: 0.1959461442 | O115: 0.1960128104 | P115: 6.666618213e-05 | Q115: 6.666618213e-05 | V115: 0.1774999849 | W115: 0.1765693925 | X115: 0.1765689266 | Y115: 0.0001248955624 | Z115: 0.0001248955624 | AE115: 11.3 | AF115: 0.1959461442 | AG115: 0.1959748222 | AH115: 7.794071973e-05 | AI115: 7.794071973e-05
D116: 0.1790707813 | E116: 0.1781152903 | F116: 0.1797699576 | G116: 0.001654667325 | H116: 0.001654667325 | M116: 11.4 | N116: 0.1976573404 | O116: 0.1977450536 | P116: 8.771321689e-05 | Q116: 8.771321689e-05 | V116: 0.1790707813 | W116: 0.1781152903 | X116: 0.1781148977 | Y116: 0.0001240403042 | Z116: 0.0001240403042 | AE116: 11.4 | AF116: 0.1976573404 | AG116: 0.1976861226 | AH116: 7.621448172e-05 | AI116: 7.621448172e-05
D117: 0.1806415776 | E117: 0.1796607486 | F117: 0.1813183668 | G117: 0.001657618199 | H117: 0.001657618199 | M117: 11.5 | N117: 0.1993679344 | O117: 0.1994761158 | P117: 0.0001081814278 | Q117: 0.0001081814278 | V117: 0.1806415776 | W117: 0.1796607486 | X117: 0.1796604226 | Y117: 0.0001231462247 | Z117: 0.0001231462247 | AE117: 11.5 | AF117: 0.1993679344 | AG117: 0.1993967973 | AH117: 7.447052194e-05 | AI117: 7.447052194e-05
D118: 0.1822123739 | E118: 0.1812057636 | F118: 0.1828659405 | G118: 0.001660176836 | H118: 0.001660176836 | M118: 11.6 | N118: 0.2010779211 | O118: 0.2012059972 | P118: 0.0001280760258 | Q118: 0.0001280760258 | V118: 0.1822123739 | W118: 0.1812057636 | X118: 0.1812054975 | Y118: 0.0001222142029 | Z118: 0.0001222142029 | AE118: 11.6 | AF118: 0.2010779211 | AG118: 0.2011068416 | AH118: 7.270978418e-05 | AI118: 7.270978418e-05
D119: 0.1837831702 | E119: 0.1827503316 | F119: 0.1844126786 | G119: 0.00166234705 | H119: 0.00166234705 | M119: 11.7 | N119: 0.2027872954 | O119: 0.2029346976 | P119: 0.0001474022196 | Q119: 0.0001474022196 | V119: 0.1837831702 | W119: 0.1827503316 | X119: 0.1827501188 | Y119: 0.0001212451118 | Z119: 0.0001212451118 | AE119: 11.7 | AF119: 0.2027872954 | AG119: 0.2028162505 | AH119: 7.093320313e-05 | AI119: 7.093320313e-05
D120: 0.1853539666 | E120: 0.1842944486 | F120: 0.1859585812 | G120: 0.00166413265 | H120: 0.00166413265 | M120: 11.8 | N120: 0.2044960518 | O120: 0.2046622171 | P120: 0.0001661652163 | Q120: 0.0001661652163 | V120: 0.1853539666 | W120: 0.1842944486 | X120: 0.1842942828 | Y120: 0.0001202398185 | Z120: 0.0001202398185 | AE120: 11.8 | AF120: 0.2044960518 | AG120: 0.2045250195 | AH120: 6.914170437e-05 | AI120: 6.914170437e-05
D121: 0.1869247629 | E121: 0.1858381108 | F121: 0.1875036483 | G121: 0.001665537447 | H121: 0.001665537447 | M121: 11.9 | N121: 0.2062041854 | O121: 0.2063885556 | P121: 0.0001843702211 | Q121: 0.0001843702211 | V121: 0.1869247629 | W121: 0.1858381108 | X121: 0.1858379861 | Y121: 0.0001191991841 | Z121: 0.0001191991841 | AE121: 11.9 | AF121: 0.2062041854 | AG121: 0.2062331436 | AH121: 6.733620442e-05 | AI121: 6.733620442e-05
D122: 0.1884955592 | E122: 0.1873813146 | F122: 0.1890478798 | G122: 0.00166656525 | H122: 0.00166656525 | M122: 12 | N122: 0.2079116908 | O122: 0.2081137133 | P122: 0.0002020224373 | Q122: 0.0002020224373 | V122: 0.1884955592 | W122: 0.1873813146 | X122: 0.1873812248 | Y122: 0.0001181240636 | Z122: 0.0001181240636 | AE122: 12 | AF122: 0.2079116908 | AG122: 0.2079406181 | AH122: 6.55176107e-05 | AI122: 6.55176107e-05
D123: 0.1900663555 | E123: 0.188924056 | F123: 0.1905912759 | G123: 0.001667219867 | H123: 0.001667219867 | M123: 12.1 | N123: 0.2096185629 | O123: 0.20983769 | P123: 0.0002191270663 | Q123: 0.0002191270663 | V123: 0.1900663555 | W123: 0.188924056 | X123: 0.1889239953 | Y123: 0.0001170153062 | Z123: 0.0001170153062 | AE123: 12.1 | AF123: 0.2096185629 | AG123: 0.2096474382 | AH123: 6.368682156e-05 | AI123: 6.368682156e-05
D124: 0.1916371519 | E124: 0.1904663312 | F124: 0.1921338363 | G124: 0.001667505104 | H124: 0.001667505104 | M124: 12.2 | N124: 0.2113247965 | O124: 0.2115604858 | P124: 0.0002356893073 | Q124: 0.0002356893073 | V124: 0.1916371519 | W124: 0.1904663312 | X124: 0.1904662941 | Y124: 0.0001158737549 | Z124: 0.0001158737549 | AE124: 12.2 | AF124: 0.2113247965 | AG124: 0.2113535991 | AH124: 6.184472628e-05 | AI124: 6.184472628e-05
D125: 0.1932079482 | E125: 0.1920081365 | F125: 0.1936755613 | G125: 0.001667424766 | H125: 0.001667424766 | M125: 12.3 | N125: 0.2130303863 | O125: 0.2132821006 | P125: 0.0002517143581 | Q125: 0.0002517143581 | V125: 0.1932079482 | W125: 0.1920081365 | X125: 0.1920081174 | Y125: 0.0001147002471 | Z125: 0.0001147002471 | AE125: 12.3 | AF125: 0.2130303863 | AG125: 0.2130590961 | AH125: 5.999220504e-05 | AI125: 5.999220504e-05
D126: 0.1947787445 | E126: 0.1935494681 | F126: 0.1952164507 | G126: 0.001666982658 | H126: 0.001666982658 | M126: 12.4 | N126: 0.2147353272 | O126: 0.2150025346 | P126: 0.000267207414 | Q126: 0.000267207414 | V126: 0.1947787445 | W126: 0.1935494681 | X126: 0.1935494617 | Y126: 0.0001134956138 | Z126: 0.0001134956138 | AE126: 12.4 | AF126: 0.2147353272 | AG126: 0.2147639243 | AH126: 5.813012898e-05 | AI126: 5.813012898e-05
D127: 0.1963495408 | E127: 0.195090322 | F127: 0.1967565046 | G127: 0.001666182583 | H127: 0.001666182583 | M127: 12.5 | N127: 0.2164396139 | O127: 0.2167217876 | P127: 0.0002821736686 | Q127: 0.0002821736686 | V127: 0.1963495408 | W127: 0.195090322 | X127: 0.1950903233 | Y127: 0.0001122606802 | Z127: 0.0001122606802 | AE127: 12.5 | AF127: 0.2164396139 | AG127: 0.2164680791 | AH127: 5.625936016e-05 | AI127: 5.625936016e-05
D128: 0.1979203372 | E128: 0.1966306946 | F128: 0.198295723 | G128: 0.001665028343 | H128: 0.001665028343 | M128: 12.6 | N128: 0.2181432414 | O128: 0.2184398597 | P128: 0.0002966183134 | Q128: 0.0002966183134 | V128: 0.1979203372 | W128: 0.1966306946 | X128: 0.1966306985 | Y128: 0.0001109962656 | Z128: 0.0001109962656 | AE128: 12.6 | AF128: 0.2181432414 | AG128: 0.2181715555 | AH128: 5.438075157e-05 | AI128: 5.438075157e-05
D129: 0.1994911335 | E129: 0.198170582 | F129: 0.1998341058 | G129: 0.001663523738 | H129: 0.001663523738 | M129: 12.7 | N129: 0.2198462044 | O129: 0.2201567509 | P129: 0.0003105465381 | Q129: 0.0003105465381 | V129: 0.1994911335 | W129: 0.198170582 | X129: 0.1981705838 | Y129: 0.0001097031832 | Z129: 0.0001097031832 | AE129: 12.7 | AF129: 0.2198462044 | AG129: 0.2198743489 | AH129: 5.249514716e-05 | AI129: 5.249514716e-05
D130: 0.2010619298 | E130: =SIN(x) -> 0.1997099805 | F130: =y0*(x-x00)*(x-x000)/(x0-x00)/(x0-x000)+y00*(x-x0)*(x-x000)/(x00-x0)/(x00-x000)+y000*(x-x0)*(x-x00)/(x000-x0)/(x000-x00) -> 0.2013716531 | G130: 0.001661672568 | H130: 0.001661672568 | M130: 12.8 | N130: =SIN(xx*PI()/180) -> 0.2215484976 | O130: =yy0*(xx-xx00)*(xx-xx000)/(xx0-xx00)/(xx0-xx000)+yy00*(xx-xx0)*(xx-xx000)/(xx00-xx0)/(xx00-xx000)+yy000*(xx-xx0)*(xx-xx00)/(xx000-xx0)/(xx000-xx00) -> 0.2218724611 | P130: 0.0003239635301 | Q130: 0.0003239635301 | V130: 0.2010619298 | W130: =SIN(xxx) -> 0.1997099805 | X130: =yyy0*(xxx-xxx00)*(xxx-xxx000)*(xxx-xxx0000)/(xxx0-xxx00)/(xxx0-xxx000)/(xxx0-xxx0000)+yyy00*(xxx-xxx0)*(xxx-xxx000)*(xxx-xxx0000)/(xxx00-xxx0)/(xxx00-xxx000)/(xxx00-xxx0000)+yyy000*(xxx-xxx0)*(xxx-xxx00)*(xxx-xxx0000)/(xxx000-xxx0)/(xxx000-xxx00)/(xxx000-xxx0000)+yyy0000*(xxx-xxx0)*(xxx-xxx00)*(xxx-xxx000)/(xxx0000-xxx0)/(xxx0000-xxx00)/(xxx0000-xxx000) -> 0.1997099754 | Y130: 0.0001083822403 | Z130: 0.0001083822403 | AE130: 12.8 | AF130: =SIN(xxxx*PI()/180) -> 0.2215484976 | AG130: =yyyy0*(xxxx-xxxx00)*(xxxx-xxxx000)*(xxxx-xxxx0000)/(xxxx0-xxxx00)/(xxxx0-xxxx000)/(xxxx0-xxxx0000)+yyyy00*(xxxx-xxxx0)*(xxxx-xxxx000)*(xxxx-xxxx0000)/(xxxx00-xxxx0)/(xxxx00-xxxx000)/(xxxx00-xxxx0000)+yyyy000*(xxxx-xxxx0)*(xxxx-xxxx00)*(xxxx-xxxx0000)/(xxxx000-xxxx0)/(xxxx000-xxxx00)/(xxxx000-xxxx0000)+yyyy0000*(xxxx-xxxx0)*(xxxx-xxxx00)*(xxxx-xxxx000)/(xxxx0000-xxxx0)/(xxxx0000-xxxx00)/(xxxx0000-xxxx000) -> 0.2215764544 | AH130: 5.060338181e-05 | AI130: 5.060338181e-05
D131: =D130+dx -> 0.2026327262 | E131: 0.2012488862 | F131: 0.2029083648 | G131: =F131-E131 -> 0.001659478631 | H131: =ABS(G131) -> 0.001659478631 | M131: =M130+dxx -> 12.9 | N131: 0.223250116 | O131: 0.2235869905 | P131: =O131-N131 -> 0.0003368744749 | Q131: =ABS(P131) -> 0.0003368744749 | V131: =V130+dxxx0 -> 0.2026327262 | W131: 0.2012488862 | X131: 0.2012488698 | Y131: 0.0001070342383 | Z131: 0.0001070342383 | AE131: 12.9 | AF131: 0.223250116 | AG131: 0.2232778673 | AH131: 4.870628136e-05 | AI131: 4.870628136e-05
D132: 0.2042035225 | E132: 0.2027872954 | F132: 0.2044442411 | G132: 0.001656945725 | H132: 0.001656945725 | M132: 13 | N132: 0.2249510543 | O132: 0.2253003389 | P132: 0.000349284556 | Q132: 0.000349284556 | V132: 0.2042035225 | W132: 0.2027872954 | X132: 0.2027872632 | Y132: 0.0001056599725 | Z132: 0.0001056599725 | AE132: 13 | AF132: 0.2249510543 | AG132: 0.2249785828 | AH132: 4.680466258e-05 | AI132: 4.680466258e-05
D133: 0.2057743188 | E133: 0.2043252041 | F133: 0.2059792818 | G133: 0.001654077645 | H133: 0.001654077645 | M133: 13.1 | N133: 0.2266513074 | O133: 0.2270125064 | P133: 0.0003611989546 | Q133: 0.0003611989546 | V133: 0.2057743188 | W133: 0.2043252041 | X133: 0.2043251522 | Y133: 0.0001042602322 | Z133: 0.0001042602322 | AE133: 13.1 | AF133: 0.2266513074 | AG133: 0.226678596 | AH133: 4.489933321e-05 | AI133: 4.489933321e-05
D134: 0.2073451151 | E134: 0.2058626088 | F134: 0.207513487 | G134: 0.001650878186 | H134: 0.001650878186 | M134: 13.2 | N134: 0.2283508701 | O134: 0.228723493 | P134: 0.0003726228501 | Q134: 0.0003726228501 | V134: 0.2073451151 | W134: 0.2058626088 | X134: 0.2058625329 | Y134: 0.000102835801 | Z134: 0.000102835801 | AE134: 13.2 | AF134: 0.2283508701 | AG134: 0.2283779023 | AH134: 4.299109196e-05 | AI134: 4.299109196e-05
D135: 0.2089159115 | E135: 0.2073995055 | F135: 0.2090468566 | G135: 0.001647351141 | H135: 0.001647351141 | M135: 13.3 | N135: 0.2300497372 | O135: 0.2304332986 | P135: 0.0003835614196 | Q135: 0.0003835614196 | V135: 0.2089159115 | W135: 0.2073995055 | X135: 0.2073994019 | Y135: 0.0001013874562 | Z135: 0.0001013874562 | AE135: 13.3 | AF135: 0.2300497372 | AG135: 0.2300764969 | AH135: 4.108072848e-05 | AI135: 4.108072848e-05
D136: 0.2104867078 | E136: 0.2089358904 | F136: 0.2105793907 | G136: 0.001643500303 | H136: 0.001643500303 | M136: 13.4 | N136: 0.2317479035 | O136: 0.2321419233 | P136: 0.0003940198381 | Q136: 0.0003940198381 | V136: 0.2104867078 | W136: 0.2089358904 | X136: 0.2089357554 | Y136: 9.991596947e-05 | Z136: 9.991596947e-05 | AE136: 13.4 | AF136: 0.2317479035 | AG136: 0.2317743749 | AH136: 3.916902339e-05 | AI136: 3.916902339e-05
D137: 0.2120575041 | E137: 0.2104717598 | F137: 0.2121110893 | G137: 0.001639329461 | H137: 0.001639329461 | M137: 13.5 | N137: 0.2334453639 | O137: 0.2338493671 | P137: 0.0004040032786 | Q137: 0.0004040032786 | V137: 0.2120575041 | W137: 0.2104717598 | X137: 0.2104715897 | Y137: 9.842210628e-05 | Z137: 9.842210628e-05 | AE137: 13.5 | AF137: 0.2334453639 | AG137: 0.2334715316 | AH137: 3.725674829e-05 | AI137: 3.725674829e-05
D138: 0.2136283004 | E138: 0.2120071099 | F138: 0.2136419523 | G138: 0.001634842407 | H138: 0.001634842407 | M138: 13.6 | N138: 0.2351421131 | O138: 0.23555563 | P138: 0.0004135169119 | Q138: 0.0004135169119 | V138: 0.2136283004 | W138: 0.2120071099 | X138: 0.2120069014 | Y138: 9.690662626e-05 | Z138: 9.690662626e-05 | AE138: 13.6 | AF138: 0.2351421131 | AG138: 0.2351679622 | AH138: 3.534466575e-05 | AI138: 3.534466575e-05
D139: 0.2151990968 | E139: 0.2135419369 | F139: 0.2151719798 | G139: 0.001630042928 | H139: 0.001630042928 | M139: 13.7 | N139: 0.2368381461 | O139: 0.237260712 | P139: 0.0004225659064 | Q139: 0.0004225659064 | V139: 0.2151990968 | W139: 0.2135419369 | X139: 0.2135416867 | Y139: 9.537028305e-05 | Z139: 9.537028305e-05 | AE139: 13.7 | AF139: 0.2368381461 | AG139: 0.2368636619 | AH139: 3.343352932e-05 | AI139: 3.343352932e-05
D140: 0.2167698931 | E140: 0.215076237 | F140: 0.2167011718 | G140: 0.001624934812 | H140: 0.001624934812 | M140: 13.8 | N140: 0.2385334576 | O140: 0.238964613 | P140: 0.0004311554287 | Q140: 0.0004311554287 | V140: 0.2167698931 | W140: 0.215076237 | X140: 0.2150759419 | Y140: 9.381382436e-05 | Z140: 9.381382436e-05 | AE140: 13.8 | AF140: 0.2385334576 | AG140: 0.2385586259 | AH140: 3.152408352e-05 | AI140: 3.152408352e-05
D141: 0.2183406894 | E141: 0.2166100064 | F141: 0.2182295283 | G141: 0.001619521843 | H141: 0.001619521843 | M141: 13.9 | N141: 0.2402280425 | O141: 0.2406673331 | P141: 0.000439290643 | Q141: 0.000439290643 | V141: 0.2183406894 | W141: 0.2166100064 | X141: 0.2166096636 | Y141: 9.223799195e-05 | Z141: 9.223799195e-05 | AE141: 13.9 | AF141: 0.2402280425 | AG141: 0.2402528495 | AH141: 2.961706386e-05 | AI141: 2.961706386e-05
D142: 0.2199114858 | E142: 0.2181432414 | F142: 0.2197570492 | G142: 0.001613807807 | H142: 0.001613807807 | M142: 14 | N142: 0.2419218956 | O142: 0.2423688723 | P142: 0.0004469767111 | Q142: 0.0004469767111 | V142: 0.2199114858 | W142: 0.2181432414 | X142: 0.2181428479 | Y142: 9.064352163e-05 | Z142: 9.064352163e-05 | AE142: 14 | AF142: 0.2419218956 | AG142: 0.2419463279 | AH142: 2.771319684e-05 | AI142: 2.771319684e-05
D143: 0.2214822821 | E143: 0.2196759381 | F143: 0.2212837346 | G143: 0.001607796486 | H143: 0.001607796486 | M143: 14.1 | N143: 0.2436150118 | O143: 0.2440692306 | P143: 0.000454218793 | Q143: 0.000454218793 | V143: 0.2214822821 | W143: 0.2196759381 | X143: 0.2196754913 | Y143: 8.903114326e-05 | Z143: 8.903114326e-05 | AE143: 14.1 | AF143: 0.2436150118 | AG143: 0.2436390563 | AH143: 2.581319996e-05 | AI143: 2.581319996e-05
D144: 0.2230530784 | E144: 0.2212080928 | F144: 0.2228095845 | G144: 0.001601491662 | H144: 0.001601491662 | M144: 14.2 | N144: 0.2453073859 | O144: 0.2457684079 | P144: 0.0004610220461 | Q144: 0.0004610220461 | V144: 0.2230530784 | W144: 0.2212080928 | X144: 0.2212075901 | Y144: 8.740158077e-05 | Z144: 8.740158077e-05 | AE144: 14.2 | AF144: 0.2453073859 | AG144: 0.2453310299 | AH144: 2.39177817e-05 | AI144: 2.39177817e-05
D145: 0.2246238747 | E145: 0.2227397017 | F145: 0.2243345988 | G145: 0.001594897116 | H145: 0.001594897116 | M145: 14.3 | N145: 0.2469990127 | O145: 0.2474664043 | P145: 0.0004673916258 | Q145: 0.0004673916258 | V145: 0.2246238747 | W145: 0.2227397017 | X145: 0.2227391407 | Y145: 8.575555214e-05 | Z145: 8.575555214e-05 | AE145: 14.3 | AF145: 0.2469990127 | AG145: 0.2470222439 | AH145: 2.202764156e-05 | AI145: 2.202764156e-05
D146: 0.2261946711 | E146: 0.2242707609 | F146: 0.2258587776 | G146: 0.001588016628 | H146: 0.001588016628 | M146: 14.4 | N146: 0.2486898872 | O146: 0.2491632198 | P146: 0.0004733326849 | Q146: 0.0004733326849 | V146: 0.2261946711 | W146: 0.2242707609 | X146: 0.2242701395 | Y146: 8.409376942e-05 | Z146: 8.409376942e-05 | AE146: 14.4 | AF146: 0.2486898872 | AG146: 0.2487126936 | AH146: 2.014347003e-05 | AI146: 2.014347003e-05
D147: 0.2277654674 | E147: 0.2258012669 | F147: 0.2273821208 | G147: 0.001580853973 | H147: 0.001580853973 | M147: 14.5 | N147: 0.2503800041 | O147: 0.2508588544 | P147: 0.0004788503742 | Q147: 0.0004788503742 | V147: 0.2277654674 | W147: 0.2258012669 | X147: 0.2258005828 | Y147: 8.241693872e-05 | Z147: 8.241693872e-05 | AE147: 14.5 | AF147: 0.2503800041 | AG147: 0.2504023742 | AH147: 1.82659486e-05 | AI147: 1.82659486e-05
D148: 0.2293362637 | E148: 0.2273312156 | F148: 0.2289046286 | G148: 0.00157341293 | H148: 0.00157341293 | M148: 14.6 | N148: 0.2520693582 | O148: 0.2525533081 | P148: 0.000483949842 | Q148: 0.000483949842 | V148: 0.2293362637 | W148: 0.2273312156 | X148: 0.2273304669 | Y148: 8.072576023e-05 | Z148: 8.072576023e-05 | AE148: 14.6 | AF148: 0.2520693582 | AG148: 0.2520912808 | AH148: 1.639574981e-05 | AI148: 1.639574981e-05
D149: 0.23090706 | E149: 0.2288606035 | F149: 0.2304263008 | G149: 0.001565697272 | H149: 0.001565697272 | M149: 14.7 | N149: 0.2537579446 | O149: 0.2542465808 | P149: 0.0004886362346 | Q149: 0.0004886362346 | V149: 0.23090706 | W149: 0.2288606035 | X149: 0.2288597883 | Y149: 7.90209282e-05 | Z149: 7.90209282e-05 | AE149: 14.7 | AF149: 0.2537579446 | AG149: 0.2537794088 | AH149: 1.453353716e-05 | AI149: 1.453353716e-05
D150: 0.2324778564 | E150: 0.2303894267 | F150: 0.2319471375 | G150: 0.001557710774 | H150: 0.001557710774 | M150: 14.8 | N150: 0.2554457579 | O150: 0.2559386726 | P150: 0.0004929146955 | Q150: 0.0004929146955 | V150: 0.2324778564 | W150: 0.2303894267 | X150: 0.2303885433 | Y150: 7.730313094e-05 | Z150: 7.730313094e-05 | AE150: 14.8 | AF150: 0.2554457579 | AG150: 0.2554667533 | AH150: 1.267996523e-05 | AI150: 1.267996523e-05
D151: 0.2340486527 | E151: 0.2319176814 | F151: 0.2334671386 | G151: 0.001549457208 | H151: 0.001549457208 | M151: 14.9 | N151: 0.2571327932 | O151: 0.2576295835 | P151: 0.0004967903661 | Q151: 0.0004967903661 | V151: 0.2340486527 | W151: 0.2319176814 | X151: 0.2319167282 | Y151: 7.557305085e-05 | Z151: 7.557305085e-05 | AE151: 14.9 | AF151: 0.2571327932 | AG151: 0.2571533096 | AH151: 1.083567957e-05 | AI151: 1.083567957e-05
D152: 0.235619449 | E152: 0.2334453639 | F152: 0.2349863042 | G152: 0.001540940345 | H152: 0.001540940345 | M152: 15 | N152: 0.2588190451 | O152: 0.2593193135 | P152: 0.0005002683855 | Q152: 0.0005002683855 | V152: 0.235619449 | W152: 0.2334453639 | X152: 0.2334443395 | Y152: 7.38313644e-05 | Z152: 7.38313644e-05 | AE152: 15 | AF152: 0.2588190451 | AG152: 0.2588390728 | AH152: 9.00131681e-06 | AI152: 9.00131681e-06
D153: 0.2371902453 | E153: 0.2349724703 | F153: 0.2365046343 | G153: 0.001532163953 | H153: 0.001532163953 | M153: 15.1 | N153: 0.2605045086 | O153: 0.2610078625 | P153: 0.0005033538902 | Q153: 0.0005033538902 | V153: 0.2371902453 | W153: 0.2349724703 | X153: 0.2349713734 | Y153: 7.207874214e-05 | Z153: 7.207874214e-05 | AE153: 15.1 | AF153: 0.2605045086 | AG153: 0.2605240382 | AH153: 7.17750457e-06 | AI153: 7.17750457e-06
D154: 0.2387610417 | E154: 0.236498997 | F154: 0.2380221288 | G154: 0.001523131802 | H154: 0.001523131802 | M154: 15.2 | N154: 0.2621891786 | O154: 0.2626952307 | P154: 0.0005060520145 | Q154: 0.0005060520145 | V154: 0.2387610417 | W154: 0.236498997 | X154: 0.2364978263 | Y154: 7.031584869e-05 | Z154: 7.031584869e-05 | AE154: 15.2 | AF154: 0.2621891786 | AG154: 0.2622082011 | AH154: 5.364861531e-06 | AI154: 5.364861531e-06
D155: 0.240331838 | E155: 0.2380249402 | F155: 0.2395387878 | G155: 0.001513847657 | H155: 0.001513847657 | M155: 15.3 | N155: 0.26387305 | O155: 0.2643814179 | P155: 0.0005083678902 | Q155: 0.0005083678902 | V155: 0.240331838 | W155: 0.2380249402 | X155: 0.2380236947 | Y155: 6.854334277e-05 | Z155: 6.854334277e-05 | AE155: 15.3 | AF155: 0.26387305 | AG155: 0.2638915565 | AH155: 3.563997407e-06 | AI155: 3.563997407e-06
D156: 0.2419026343 | E156: 0.239550296 | F156: 0.2410546113 | G156: 0.001504315283 | H156: 0.001504315283 | M156: 15.4 | N156: 0.2655561175 | O156: 0.2660664241 | P156: 0.0005103066466 | Q156: 0.0005103066466 | V156: 0.2419026343 | W156: 0.239550296 | X156: 0.2395489748 | Y156: 6.676187717e-05 | Z156: 6.676187717e-05 | AE156: 15.4 | AF156: 0.2655561175 | AG156: 0.2655740998 | AH156: 1.77551296e-06 | AI156: 1.77551296e-06
D157: 0.2434734307 | E157: 0.2410750608 | F157: 0.2425695993 | G157: 0.001494538445 | H157: 0.001494538445 | M157: 15.5 | N157: 0.2672383761 | O157: 0.2677502495 | P157: 0.0005118734107 | Q157: 0.0005118734107 | V157: 0.2434734307 | W157: 0.2410750608 | X157: 0.2410736631 | Y157: 6.497209877e-05 | Z157: 6.497209877e-05 | AE157: 15.5 | AF157: 0.2672383761 | AG157: 0.2672558262 | AH157: 0 | AI157: 0
D158: 0.245044227 | E158: 0.2425992308 | F158: 0.2440837517 | G158: 0.001484520904 | H158: 0.001484520904 | M158: 15.6 | N158: 0.2689198206 | O158: 0.2694328939 | P158: 0.0005130733068 | Q158: 0.0005130733068 | V158: 0.245044227 | W158: 0.2425992308 | X158: 0.2425977558 | Y158: 6.317464855e-05 | Z158: 6.317464855e-05 | AE158: 15.6 | AF158: 0.2689198206 | AG158: 0.2689367309 | AH158: -1.761958607e-06 | AI158: 1.761958607e-06
D159: 0.2466150233 | E159: 0.2441228022 | F159: 0.2455970686 | G159: 0.001474266422 | H159: 0.001474266422 | M159: 15.7 | N159: 0.270600446 | O159: 0.2711143574 | P159: 0.0005139114571 | Q159: 0.0005139114571 | V159: 0.2466150233 | W159: 0.2441228022 | X159: 0.2441212494 | Y159: 6.137016156e-05 | Z159: 6.137016156e-05 | AE159: 15.7 | AF159: 0.270600446 | AG159: 0.2706168091 | AH159: -3.509788939e-06 | AI159: 3.509788939e-06
D160: 0.2481858196 | E160: 0.2456457712 | F160: 0.2471095499 | G160: 0.001463778757 | H160: 0.001463778757 | M160: 15.8 | N160: 0.272280247 | O160: 0.27279464 | P160: 0.0005143929808 | Q160: 0.0005143929808 | V160: 0.2481858196 | W160: 0.2456457712 | X160: 0.2456441401 | Y160: 5.955926697e-05 | Z160: 5.955926697e-05 | AE160: 15.8 | AF160: 0.272280247 | AG160: 0.272296056 | AH160: -5.242926009e-06 | AI160: 5.242926009e-06
D161: 0.249756616 | E161: 0.2471681341 | F161: 0.2486211958 | G161: 0.001453061668 | H161: 0.001453061668 | M161: 15.9 | N161: 0.2739592187 | O161: 0.2744737417 | P161: 0.0005145229951 | Q161: 0.0005145229951 | V161: 0.249756616 | W161: 0.2471681341 | X161: 0.2471664245 | Y161: 5.774258803e-05 | Z161: 5.774258803e-05 | AE161: 15.9 | AF161: 0.2739592187 | AG161: 0.2739744668 | AH161: -6.960813766e-06 | AI161: 6.960813766e-06
D162: 0.2513274123 | E162: 0.2486898872 | F162: 0.2501320061 | G162: 0.00144211891 | H162: 0.00144211891 | M162: 16 | N162: 0.2756373558 | O162: 0.2761516624 | P162: 0.0005143066144 | Q162: 0.0005143066144 | V162: 0.2513274123 | W162: 0.2486898872 | X162: 0.2486880987 | Y162: 5.592074208e-05 | Z162: 5.592074208e-05 | AE162: 16 | AF162: 0.2756373558 | AG162: 0.2756520368 | AH162: -8.662905084e-06 | AI162: 8.662905084e-06
D163: 0.2528982086 | E163: 0.2502110266 | F163: 0.2516419808 | G163: 0.001430954238 | H163: 0.001430954238 | M163: 16.1 | N163: 0.2773146533 | O163: 0.2778284023 | P163: 0.0005137489505 | Q163: 0.0005137489505 | V163: 0.2528982086 | W163: 0.2502110266 | X163: 0.2502091593 | Y163: 5.409434058e-05 | Z163: 5.409434058e-05 | AE163: 16.1 | AF163: 0.2773146533 | AG163: 0.2773287612 | AH163: -1.034866176e-05 | AI163: 1.034866176e-05
D164: 0.2544690049 | E164: 0.2517315487 | F164: 0.2531511201 | G164: 0.001419571406 | H164: 0.001419571406 | M164: 16.2 | N164: 0.278991106 | O164: 0.2795039612 | P164: 0.0005128551128 | Q164: 0.0005128551128 | V164: 0.2544690049 | W164: 0.2517315487 | X164: 0.2517296025 | Y164: 5.226398908e-05 | Z164: 5.226398908e-05 | AE164: 16.2 | AF164: 0.278991106 | AG164: 0.2790046352 | AH164: -1.201755452e-05 | AI164: 1.201755452e-05
D165: 0.2560398013 | E165: 0.2532514496 | F165: 0.2546594238 | G165: 0.001407974165 | H165: 0.001407974165 | M165: 16.3 | N165: 0.2806667089 | O165: 0.2811783391 | P165: 0.000511630208 | Q165: 0.000511630208 | V165: 0.2560398013 | W165: 0.2532514496 | X165: 0.2532494247 | Y165: 5.043028725e-05 | Z165: 5.043028725e-05 | AE165: 16.3 | AF165: 0.2806667089 | AG165: 0.2806796541 | AH165: -1.3669063e-05 | AI165: 1.3669063e-05
D166: 0.2576105976 | E166: 0.2547707257 | F166: 0.2561668919 | G166: 0.001396166266 | H166: 0.001396166266 | M166: 16.4 | N166: 0.2823414568 | O166: 0.2828515362 | P166: 0.0005100793404 | Q166: 0.0005100793404 | V166: 0.2576105976 | W166: 0.2547707257 | X166: 0.2547686222 | Y166: 4.859382886e-05 | Z166: 4.859382886e-05 | AE166: 16.4 | AF166: 0.2823414568 | AG166: 0.2823538129 | AH166: -1.530267574e-05 | AI166: 1.530267574e-05
D167: 0.2591813939 | E167: 0.2562893731 | F167: 0.2576735246 | G167: 0.001384151457 | H167: 0.001384151457 | M167: 16.5 | N167: 0.2840153447 | O167: 0.2845235523 | P167: 0.0005082076115 | Q167: 0.0005082076115 | V167: 0.2591813939 | W167: 0.2562893731 | X167: 0.2562871915 | Y167: 4.675520177e-05 | Z167: 4.675520177e-05 | AE167: 16.5 | AF167: 0.2840153447 | AG167: 0.284027107 | AH167: -1.691789019e-05 | AI167: 1.691789019e-05
D168: 0.2607521902 | E168: 0.2578073882 | F168: 0.2591793217 | G168: 0.001371933485 | H168: 0.001371933485 | M168: 16.6 | N168: 0.2856883674 | O168: 0.2861943875 | P168: 0.0005060201202 | Q168: 0.0005060201202 | V168: 0.2607521902 | W168: 0.2578073882 | X168: 0.2578051289 | Y168: 4.491498799e-05 | Z168: 4.491498799e-05 | AE168: 16.6 | AF168: 0.2856883674 | AG168: 0.2856995317 | AH168: -1.851421271e-05 | AI168: 1.851421271e-05
D169: 0.2623229866 | E169: 0.2593247672 | F169: 0.2606842833 | G169: 0.001359516096 | H169: 0.001359516096 | M169: 16.7 | N169: 0.2873605198 | O169: 0.2878640418 | P169: 0.000503521963 | Q169: 0.000503521963 | V169: 0.2623229866 | W169: 0.2593247672 | X169: 0.2593224307 | Y169: 4.307376363e-05 | Z169: 4.307376363e-05 | AE169: 16.7 | AF169: 0.2873605198 | AG169: 0.287371082 | AH169: -2.009115855e-05 | AI169: 2.009115855e-05
D170: 0.2638937829 | E170: 0.2608415063 | F170: 0.2621884093 | G170: 0.001346903034 | H170: 0.001346903034 | M170: 16.8 | N170: 0.2890317969 | O170: 0.2895325152 | P170: 0.0005007182333 | Q170: 0.0005007182333 | V170: 0.2638937829 | W170: 0.2608415063 | X170: 0.2608390934 | Y170: 4.12320989e-05 | Z170: 4.12320989e-05 | AE170: 16.8 | AF170: 0.2890317969 | AG170: 0.2890417532 | AH170: -2.164825184e-05 | AI170: 2.164825184e-05
D171: 0.2654645792 | E171: 0.2623576018 | F171: 0.2636916998 | G171: 0.001334098042 | H171: 0.001334098042 | M171: 16.9 | N171: 0.2907021936 | O171: 0.2911998076 | P171: 0.0004976140223 | Q171: 0.0004976140223 | V171: 0.2654645792 | W171: 0.2623576018 | X171: 0.2623551132 | Y171: 3.939055815e-05 | Z171: 3.939055815e-05 | AE171: 16.9 | AF171: 0.2907021936 | AG171: 0.2907115406 | AH171: -2.318502563e-05 | AI171: 2.318502563e-05
D172: 0.2670353756 | E172: 0.26387305 | F172: 0.2651941548 | G172: 0.001321104859 | H172: 0.001321104859 | M172: 17 | N172: 0.2923717047 | O172: 0.2928659191 | P172: 0.0004942144183 | Q172: 0.0004942144183 | V172: 0.2670353756 | W172: 0.26387305 | X172: 0.2638704865 | Y172: 3.754969986e-05 | Z172: 3.754969986e-05 | AE172: 17 | AF172: 0.2923717047 | AG172: 0.2923804393 | AH172: -2.470102182e-05 | AI172: 2.470102182e-05
D173: 0.2686061719 | E173: 0.2653878471 | F173: 0.2666957743 | G173: 0.001307927226 | H173: 0.001307927226 | M173: 17.1 | N173: 0.2940403252 | O173: 0.2945308497 | P173: 0.0004905245068 | Q173: 0.0004905245068 | V173: 0.2686061719 | W173: 0.2653878471 | X173: 0.2653852097 | Y173: 3.57100766e-05 | Z173: 3.57100766e-05 | AE173: 17.1 | AF173: 0.2940403252 | AG173: 0.2940484446 | AH173: -2.619579121e-05 | AI173: 2.619579121e-05
D174: 0.2701769682 | E174: 0.2669019893 | F174: 0.2681965582 | G174: 0.001294568879 | H174: 0.001294568879 | M174: 17.2 | N174: 0.29570805 | O174: 0.2961945994 | P174: 0.0004865493708 | Q174: 0.0004865493708 | V174: 0.2701769682 | W174: 0.2669019893 | X174: 0.2668992792 | Y174: 3.387223511e-05 | Z174: 3.387223511e-05 | AE174: 17.2 | AF174: 0.29570805 | AG174: 0.2957155517 | AH174: -2.766889347e-05 | AI174: 2.766889347e-05
D175: 0.2717477645 | E175: 0.268415473 | F175: 0.2696965066 | G175: 0.001281033556 | H175: 0.001281033556 | M175: 17.3 | N175: 0.2973748741 | O175: 0.2978571682 | P175: 0.0004822940905 | Q175: 0.0004822940905 | V175: 0.2717477645 | W175: 0.268415473 | X175: 0.2684126913 | Y175: 3.203671624e-05 | Z175: 3.203671624e-05 | AE175: 17.3 | AF175: 0.2973748741 | AG175: 0.2973817558 | AH175: -2.911989712e-05 | AI175: 2.911989712e-05
D176: 0.2733185609 | E176: 0.2699282945 | F176: 0.2711956194 | G176: 0.001267324989 | H176: 0.001267324989 | M176: 17.4 | N176: 0.2990407923 | O176: 0.299518556 | P176: 0.0004777637433 | Q176: 0.0004777637433 | V176: 0.2733185609 | W176: 0.2699282945 | X176: 0.2699254424 | Y176: 3.020405496e-05 | Z176: 3.020405496e-05 | AE176: 17.4 | AF176: 0.2990407923 | AG176: 0.2990470522 | AH176: -3.054837957e-05 | AI176: 3.054837957e-05
D177: 0.2748893572 | E177: 0.2714404499 | F177: 0.2726938968 | G177: 0.001253446913 | H177: 0.001253446913 | M177: 17.5 | N177: 0.3007057995 | O177: 0.3011787629 | P177: 0.0004729634039 | Q177: 0.0004729634039 | V177: 0.2748893572 | W177: 0.2714404499 | X177: 0.2714375288 | Y177: 2.83747804e-05 | Z177: 2.83747804e-05 | AE177: 17.5 | AF177: 0.3007057995 | AG177: 0.300711436 | AH177: -3.195392707e-05 | AI177: 3.195392707e-05
D178: 0.2764601535 | E178: 0.2729519355 | F178: 0.2741913386 | G178: 0.001239403058 | H178: 0.001239403058 | M178: 17.6 | N178: 0.3023698908 | O178: 0.3028377889 | P178: 0.0004678981441 | Q178: 0.0004678981441 | V178: 0.2764601535 | W178: 0.2729519355 | X178: 0.2729489469 | Y178: 2.654941582e-05 | Z178: 2.654941582e-05 | AE178: 17.6 | AF178: 0.3023698908 | AG178: 0.3023749025 | AH178: -3.333613475e-05 | AI178: 3.333613475e-05
D179: 0.2780309498 | E179: 0.2744627477 | F179: 0.2756879448 | G179: 0.001225197153 | H179: 0.001225197153 | M179: 17.7 | N179: 0.3040330609 | O179: 0.304495634 | P179: 0.0004625730332 | Q179: 0.0004625730332 | V179: 0.2780309498 | W179: 0.2744627477 | X179: 0.2744596931 | Y179: 2.472847861e-05 | Z179: 2.472847861e-05 | AE179: 17.7 | AF179: 0.3040330609 | AG179: 0.3040374468 | AH179: -3.469460655e-05 | AI179: 3.469460655e-05
D180: 0.2796017462 | E180: 0.2759728826 | F180: 0.2771837156 | G180: 0.001210832926 | H180: 0.001210832926 | M180: 17.8 | N180: 0.305695305 | O180: 0.3061522981 | P180: 0.0004569931373 | Q180: 0.0004569931373 | V180: 0.2796017462 | W180: 0.2759728826 | X180: 0.2759697637 | Y180: 2.291248031e-05 | Z180: 2.291248031e-05 | AE180: 17.8 | AF180: 0.305695305 | AG180: 0.3056990643 | AH180: -3.60289553e-05 | AI180: 3.60289553e-05
D181: 0.2811725425 | E181: 0.2774823367 | F181: 0.2786786508 | G181: 0.001196314104 | H181: 0.001196314104 | M181: 17.9 | N181: 0.3073566178 | O181: 0.3078077813 | P181: 0.00045116352 | Q181: 0.00045116352 | V181: 0.2811725425 | W181: 0.2774823367 | X181: 0.277479155 | Y181: 2.110192661e-05 | Z181: 2.110192661e-05 | AE181: 17.9 | AF181: 0.3073566178 | AG181: 0.3073597502 | AH181: -3.733880264e-05 | AI181: 3.733880264e-05
D182: 0.2827433388 | E182: 0.278991106 | F182: 0.2801727505 | G182: 0.001181644411 | H182: 0.001181644411 | M182: 18 | N182: 0.3090169944 | O182: 0.3094620836 | P182: 0.0004450892419 | Q182: 0.0004450892419 | V182: 0.2827433388 | W182: 0.278991106 | X182: 0.2789878635 | Y182: 1.929731735e-05 | Z182: 1.929731735e-05 | AE182: 18 | AF182: 0.3090169944 | AG182: 0.3090194995 | AH182: -3.862377904e-05 | AI182: 3.862377904e-05
D183: 0.2843141351 | E183: 0.280499187 | F183: 0.2816660146 | G183: 0.00116682757 | H183: 0.00116682757 | M183: 18.1 | N183: 0.3106764296 | O183: 0.311115205 | P183: 0.0004387753608 | Q183: 0.0004387753608 | V183: 0.2843141351 | W183: 0.280499187 | X183: 0.2804958855 | Y183: 1.749914651e-05 | Z183: 1.749914651e-05 | AE183: 18.1 | AF183: 0.3106764296 | AG183: 0.3106783077 | AH183: -3.988352383e-05 | AI183: 3.988352383e-05
D184: 0.2858849315 | E184: 0.2820065759 | F184: 0.2831584432 | G184: 0.001151867301 | H184: 0.001151867301 | M184: 18.2 | N184: 0.3123349185 | O184: 0.3127671454 | P184: 0.0004322269317 | Q184: 0.0004322269317 | V184: 0.2858849315 | W184: 0.2820065759 | X184: 0.2820032174 | Y184: 1.570790222e-05 | Z184: 1.570790222e-05 | AE184: 18.2 | AF184: 0.3123349185 | AG184: 0.3123361698 | AH184: -4.111768513e-05 | AI184: 4.111768513e-05
D185: 0.2874557278 | E185: 0.283513269 | F185: 0.2846500363 | G185: 0.001136767324 | H185: 0.001136767324 | M185: 18.3 | N185: 0.313992456 | O185: 0.314417905 | P185: 0.0004254490066 | Q185: 0.0004254490066 | V185: 0.2874557278 | W185: 0.283513269 | X185: 0.2835098555 | Y185: 1.39240668e-05 | Z185: 1.39240668e-05 | AE185: 18.3 | AF185: 0.313992456 | AG185: 0.3139930812 | AH185: -4.232591992e-05 | AI185: 4.232591992e-05
D186: 0.2890265241 | E186: 0.2850192625 | F186: 0.2861407938 | G186: 0.001121531356 | H186: 0.001121531356 | M186: 18.4 | N186: 0.3156490369 | O186: 0.3160674836 | P186: 0.0004184466346 | Q186: 0.0004184466346 | V186: 0.2890265241 | W186: 0.2850192625 | X186: 0.2850157961 | Y186: 1.214811668e-05 | Z186: 1.214811668e-05 | AE186: 18.4 | AF186: 0.3156490369 | AG186: 0.3156490369 | AH186: -4.350789395e-05 | AI186: 4.350789395e-05
D187: 0.2905973205 | E187: 0.2865245527 | F187: 0.2876307158 | G187: 0.001106163114 | H187: 0.001106163114 | M187: 18.5 | N187: 0.3173046564 | O187: 0.3177158813 | P187: 0.000411224862 | Q187: 0.000411224862 | V187: 0.2905973205 | W187: 0.2865245527 | X187: 0.2865210357 | Y187: 1.038052249e-05 | Z187: 1.038052249e-05 | AE187: 18.5 | AF187: 0.3173046564 | AG187: 0.3173040324 | AH187: -4.466328182e-05 | AI187: 4.466328182e-05
D188: 0.2921681168 | E188: 0.288029136 | F188: 0.2891198023 | G188: 0.001090666312 | H188: 0.001090666312 | M188: 18.6 | N188: 0.3189593093 | O188: 0.319363098 | P188: 0.0004037887321 | Q188: 0.0004037887321 | V188: 0.2921681168 | W188: 0.288029136 | X188: 0.2880255707 | Y188: 8.621749004e-06 | Z188: 8.621749004e-06 | AE188: 18.6 | AF188: 0.3189593093 | AG188: 0.3189580627 | AH188: -4.579176691e-05 | AI188: 4.579176691e-05
D189: 0.2937389131 | E189: 0.2895330086 | F189: 0.2906080533 | G189: 0.001075044662 | H189: 0.001075044662 | M189: 18.7 | N189: 0.3206129906 | O189: 0.3210091339 | P189: 0.0003961432852 | Q189: 0.0003961432852 | V189: 0.2937389131 | W189: 0.2895330086 | X189: 0.2895293972 | Y189: 6.872255177e-06 | Z189: 6.872255177e-06 | AE189: 18.7 | AF189: 0.3206129906 | AG189: 0.320611123 | AH189: -4.68930414e-05 | AI189: 4.68930414e-05
D190: 0.2953097094 | E190: 0.2910361668 | F190: 0.2920954687 | G190: 0.001059301874 | H190: 0.001059301874 | M190: 18.8 | N190: 0.3222656952 | O190: 0.3226539888 | P190: 0.0003882935587 | Q190: 0.0003882935587 | V190: 0.2953097094 | W190: 0.2910361668 | X190: 0.2910325118 | Y190: 5.132494124e-06 | Z190: 5.132494124e-06 | AE190: 18.8 | AF190: 0.3222656952 | AG190: 0.3222632087 | AH190: -4.796680628e-05 | AI190: 4.796680628e-05
D191: 0.2968805058 | E191: 0.2925386069 | F191: 0.2935820486 | G191: 0.001043441658 | H191: 0.001043441658 | M191: 18.9 | N191: 0.3239174182 | O191: 0.3242976628 | P191: 0.0003802445871 | Q191: 0.0003802445871 | V191: 0.2968805058 | W191: 0.2925386069 | X191: 0.2925349108 | Y191: 3.402913136e-06 | Z191: 3.402913136e-06 | AE191: 18.9 | AF191: 0.3239174182 | AG191: 0.3239143149 | AH191: -4.901277132e-05 | AI191: 4.901277132e-05
D192: 0.2984513021 | E192: 0.2940403252 | F192: 0.295067793 | G192: 0.00102746772 | H192: 0.00102746772 | M192: 19 | N192: 0.3255681545 | O192: 0.3259401559 | P192: 0.0003720014018 | Q192: 0.0003720014018 | V192: 0.2984513021 | W192: 0.2940403252 | X192: 0.2940365906 | Y192: 1.68395368e-06 | Z192: 1.68395368e-06 | AE192: 19 | AF192: 0.3255681545 | AG192: 0.3255644369 | AH192: -5.003065508e-05 | AI192: 5.003065508e-05
D193: 0.3000220984 | E193: 0.295541318 | F193: 0.2965527018 | G193: 0.001011383767 | H193: 0.001011383767 | M193: 19.1 | N193: 0.327217899 | O193: 0.327581468 | P193: 0.0003635690312 | Q193: 0.0003635690312 | V193: 0.3000220984 | W193: 0.295541318 | X193: 0.2955375474 | Y193: -2.394860055e-08 | Z193: 2.394860055e-08 | AE193: 19.1 | AF193: 0.327217899 | AG193: 0.3272135698 | AH193: -5.102018488e-05 | AI193: 5.102018488e-05
D194: 0.3015928947 | E194: =SIN(x) -> 0.2970415816 | F194: =y0*(x-x00)*(x-x000)/(x0-x00)/(x0-x000)+y00*(x-x0)*(x-x000)/(x00-x0)/(x00-x000)+y000*(x-x0)*(x-x00)/(x000-x0)/(x000-x00) -> 0.2980367751 | G194: 0.0009951935013 | H194: 0.0009951935013 | M194: 19.2 | N194: =SIN(xx*PI()/180) -> 0.3288666467 | O194: =yy0*(xx-xx00)*(xx-xx000)/(xx0-xx00)/(xx0-xx000)+yy00*(xx-xx0)*(xx-xx000)/(xx00-xx0)/(xx00-xx000)+yy000*(xx-xx0)*(xx-xx00)/(xx000-xx0)/(xx000-xx00) -> 0.3292215992 | P194: 0.0003549525007 | Q194: 0.0003549525007 | V194: 0.3015928947 | W194: =SIN(xxx) -> 0.2970415816 | X194: =yyy0*(xxx-xxx00)*(xxx-xxx000)*(xxx-xxx0000)/(xxx0-xxx00)/(xxx0-xxx000)/(xxx0-xxx0000)+yyy00*(xxx-xxx0)*(xxx-xxx000)*(xxx-xxx0000)/(xxx00-xxx0)/(xxx00-xxx000)/(xxx00-xxx0000)+yyy000*(xxx-xxx0)*(xxx-xxx00)*(xxx-xxx0000)/(xxx000-xxx0)/(xxx000-xxx00)/(xxx000-xxx0000)+yyy0000*(xxx-xxx0)*(xxx-xxx00)*(xxx-xxx000)/(xxx0000-xxx0)/(xxx0000-xxx00)/(xxx0000-xxx000) -> 0.2970377777 | Y194: -1.720363879e-06 | Z194: 1.720363879e-06 | AE194: 19.2 | AF194: =SIN(xxxx*PI()/180) -> 0.3288666467 | AG194: =yyyy0*(xxxx-xxxx00)*(xxxx-xxxx000)*(xxxx-xxxx0000)/(xxxx0-xxxx00)/(xxxx0-xxxx000)/(xxxx0-xxxx0000)+yyyy00*(xxxx-xxxx0)*(xxxx-xxxx000)*(xxxx-xxxx0000)/(xxxx00-xxxx0)/(xxxx00-xxxx000)/(xxxx00-xxxx0000)+yyyy000*(xxxx-xxxx0)*(xxxx-xxxx00)*(xxxx-xxxx0000)/(xxxx000-xxxx0)/(xxxx000-xxxx00)/(xxxx000-xxxx0000)+yyyy0000*(xxxx-xxxx0)*(xxxx-xxxx00)*(xxxx-xxxx000)/(xxxx0000-xxxx0)/(xxxx0000-xxxx00)/(xxxx0000-xxxx000) -> 0.3288617089 | AH194: -5.198109684e-05 | AI194: 5.198109684e-05
D195: =D194+dx -> 0.3031636911 | E195: 0.2985411122 | F195: 0.2995200128 | G195: =F195-E195 -> 0.0009789006248 | H195: =ABS(G195) -> 0.0009789006248 | M195: =M194+dxx -> 19.3 | N195: 0.3305143927 | O195: 0.3308605495 | P195: =O195-N195 -> 0.0003461568327 | Q195: =ABS(P195) -> 0.0003461568327 | V195: =V194+dxxx0 -> 0.3031636911 | W195: 0.2985411122 | X195: 0.2985372779 | Y195: -3.404868147e-06 | Z195: 3.404868147e-06 | AE195: 19.3 | AF195: 0.3305143927 | AG195: 0.3305088495 | AH195: -5.291313582e-05 | AI195: 5.291313582e-05
D196: 0.3047344874 | E196: 0.3000399062 | F196: 0.3010024151 | G196: 0.0009625088377 | H196: 0.0009625088377 | M196: 19.4 | N196: 0.3321611319 | O196: 0.3324983189 | P196: 0.0003371870466 | Q196: 0.0003371870466 | V196: 0.3047344874 | W196: 0.3000399062 | X196: 0.3000360442 | Y196: -5.077043207e-06 | Z196: 5.077043207e-06 | AE196: 19.4 | AF196: 0.3321611319 | AG196: 0.3321549866 | AH196: -5.381605548e-05 | AI196: 5.381605548e-05
D197: 0.3063052837 | E197: 0.3015379599 | F197: 0.3024839818 | G197: 0.0009460218379 | H197: 0.0009460218379 | M197: 19.5 | N197: 0.3338068592 | O197: 0.3341349074 | P197: 0.0003280481585 | Q197: 0.0003280481585 | V197: 0.3063052837 | W197: 0.3015379599 | X197: 0.3015340731 | Y197: -6.736476674e-06 | Z197: 6.736476674e-06 | AE197: 19.5 | AF197: 0.3338068592 | AG197: 0.3338001156 | AH197: -5.46896182e-05 | AI197: 5.46896182e-05
D198: 0.3078760801 | E198: 0.3030352696 | F198: 0.303964713 | G198: 0.0009294433218 | H198: 0.0009294433218 | M198: 19.6 | N198: 0.3354515698 | O198: 0.3357703149 | P198: 0.0003187451817 | Q198: 0.0003187451817 | V198: 0.3078760801 | W198: 0.3030352696 | X198: 0.3030313609 | Y198: -8.382761969e-06 | Z198: 8.382761969e-06 | AE198: 19.6 | AF198: 0.3354515698 | AG198: 0.3354442316 | AH198: -5.553359513e-05 | AI198: 5.553359513e-05
D199: 0.3094468764 | E199: 0.3045318316 | F199: 0.3054446086 | G199: 0.0009127769839 | H199: 0.0009127769839 | M199: 19.7 | N199: 0.3370952584 | O199: 0.3374045415 | P199: 0.0003092831262 | Q199: 0.0003092831262 | V199: 0.3094468764 | W199: 0.3045318316 | X199: 0.304527904 | Y199: -1.001549832e-05 | Z199: 1.001549832e-05 | AE199: 19.7 | AF199: 0.3370952584 | AG199: 0.3370873299 | AH199: -5.634776618e-05 | AI199: 5.634776618e-05
D200: 0.3110176727 | E200: 0.3060276422 | F200: 0.3069236687 | G200: 0.0008960265168 | H200: 0.0008960265168 | M200: 19.8 | N200: 0.3387379202 | O200: 0.3390375872 | P200: 0.0002996669989 | Q200: 0.0002996669989 | V200: 0.3110176727 | W200: 0.3060276422 | X200: 0.3060236987 | Y200: -1.163429075e-05 | Z200: 1.163429075e-05 | AE200: 19.8 | AF200: 0.3387379202 | AG200: 0.3387294057 | AH200: -5.713191997e-05 | AI200: 5.713191997e-05
... 302 more rows
